Cogmind - Beta 17.1 @@@ ROGUE MODE // 2026.08.31 @ 04:38:26 Player: naththebg Result: Self-destructed Performance ------------- Evolutions (8) 4000 Regions Visited (27) 5400 Robots Destroyed (1294) 6470 Value Destroyed (73645) 73645 Prototype IDs (164) 3280 Alien Tech Used (3) 600 Bonus (96820) 96820 TOTAL SCORE: 190215 Bonus ------- Triggered High Security 3000 High Alert Combat Kills 42687 Follower Combat Kills 3039 Prayed to X0-1V1 5000 Major X0-1V1 Interference 37250 Met Imprinter 300 Met Warlord at Base 500 MAIN.C Attacked Warlord 500 Warlord Defense Kills 5494 Met R17 at Cetus 500 Met R17 at Research 2000 Scanned by Researcher 500 Friendly Fire -3950 Cogmind --------- Core Integrity 49/1500 Matter 922/1000 Energy 1827/3026 System Corruption 62% Temperature Cool (-200) Movement Walking (57) Location -2/Protoforge Parts ------- > --- POWER (3) -------- Multi-Quantum Reactor > --- PROPULSION (5) --- Thunder-VSS Exoskeleton > --- UTILITY (11) ----- Armored Scrap Engine Advanced Cryofiber Web (fused) Concept Antigrav Storage Unit Experimental Targeting Computer Concept Networked Targeting System (fused) Experimental Target Analyzer Experimental Armor Integrity Analyzer Experimental Focal Shield Concept Impact Drone Bay (0/6) > --- WEAPON (7) ------- Ballistic Rail Construct/C > --- INVENTORY (25) --- Matter Drive Concept Chromion Battery (800) Concept NT7 Matterbank (750) Concept Weapon Articulator Precision Matter Filter Concept Cloak Mesh Phase Armor Experimental EM Shield Phase Redirector Concept Antimissile System Concept Matter Streamer Concept Matter Streamer Crosscalibrator Transdimensional Reconstructor Core Reset Matrix Subatomic Replicator Advanced Plasma Rifle Concept Rapid Grenade Launcher Peak State ------------ > --- POWER ------------ Multi-Quantum Reactor > --- PROPULSION ------- Thunder-VSS Exoskeleton > --- UTILITY ---------- Armored Scrap Engine Advanced Cryofiber Web Concept Phasing Heat Sink Concept Antigrav Storage Unit Experimental Targeting Computer Concept Networked Targeting System Experimental Kinecellerator Concept RG22 Armor Concept Energy Mantle > --- WEAPON ----------- Helical Railgun Hpw. Ballistic Helical Construct/C > --- INVENTORY -------- Experimental Antimatter Reactor Concept Zero-point Core Matter Drive Experimental Heat Sink Concept Chromion Battery Concept NT7 Matterbank Concept Weapon Articulator Precision Matter Filter Advanced Kinecellerator Phase Armor Phase Redirector Concept Antimissile System Concept Matter Streamer Concept Matter Streamer Crosscalibrator Core Reset Matrix Subatomic Replicator Vortex Cannon Concept Plasma Driver Advanced KE Penetrator Helical Railgun Sigix Terminator Vibroblade [Rating: 242] Favorites ----------- Power Constructs Engine F-cell Engine Power Core Enhanced Nuclear Core Reactor Constructs Propulsion Constructs Treads Medium Treads Leg Constructs Wheel Compact Wheel Utility Armored Scrap Engine Device Armored Scrap Engine Storage Large Storage Unit Processor Experimental Core Analyzer Hackware Experimental Hacking Suite Protection Centrium Heavy Armor Plating Artifact Phase Redirector Weapon Constructs Energy Gun EM Pulse Gun Energy Cannon Improved EM Pulse Cannon Ballistic Gun Assault Rifle Ballistic Cannon Constructs Launcher Guided Missile Launcher Slashing Weapon Vibroblade Piercing Weapon Enhanced Force Lance Build | -11 -10 -10 -8 -8 -8 -6 -6 -6 -6 -5 -5 -5 -5 -5 -5 -5 -4 -4 -4 -4 -4 -4 -3 -3 -2 -2 -2 ------- Run | Yrd Mat Sub Mat Sto Rec Fac Low Low Zio Pro Fac Was Fac Upp Upp War Pro Fac Ext Cet Arc Hub Res Qua Res Tes Frg Slots Evolved 16 | . . . 4 . . 4 . . . . 2 . . . . . . 2 . . . . 2 . 2 . . Power 1 | . . . . . . 1 . . . . . . . . . . . . . . . . . . . . . Propulsion 2 | . . . 1 . . 1 . . . . . . . . . . . . . . . . . . . . . Utility 10 | . . . 2 . . 1 . . . . 2 . . . . . . 2 . . . . 1 . 2 . . Weapon 3 | . . . 1 . . 1 . . . . . . . . . . . . . . . . 1 . . . . Parts Attached 263 | 6 9 6 19 10 7 11 3 1 . 4 15 . 21 2 3 5 1 6 1 4 1 2 11 16 16 18 65 Power 11 | 1 1 . 1 2 . . . . . . 2 . . . . . . . . . . . . 1 . . 3 Engine 4 | 1 1 . . 2 . . . . . . . . . . . . . . . . . . . . . . . Core 4 | . . . 1 . . . . . . . 2 . . . . . . . . . . . . . . . 1 Reactor 3 | . . . . . . . . . . . . . . . . . . . . . . . . 1 . . 2 Propulsion 11 | 2 1 1 5 1 1 . . . . . . . . . . . . . . . . . . . . . . Treads 9 | 2 . . 5 1 1 . . . . . . . . . . . . . . . . . . . . . . Leg . | . . . . . . . . . . . . . . . . . . . . . . . . . . . . Wheel 2 | . 1 1 . . . . . . . . . . . . . . . . . . . . . . . . . Hover . | . . . . . . . . . . . . . . . . . . . . . . . . . . . . Flight . | . . . . . . . . . . . . . . . . . . . . . . . . . . . . Utility 186 | 1 4 . 8 5 4 9 3 1 . 4 13 . 20 2 3 5 1 6 1 3 . 1 9 12 14 7 50 Device 117 | . 3 . 4 2 3 7 3 1 . 3 6 . 16 2 3 3 . 4 1 2 . . 6 8 4 2 34 Storage 13 | 1 1 . . . . . . . . 1 2 . 2 . . . . 1 . . . . 2 . . 2 1 Processor 25 | . . . . . . 1 . . . . 3 . 2 . . 2 1 1 . . . 1 . . 6 1 7 Hackware 1 | . . . . . . . . . . . . . . . . . . . . . . . . 1 . . . Protection 29 | . . . 4 3 1 1 . . . . 2 . . . . . . . . 1 . . 1 2 4 2 8 Artifact 1 | . . . . . . . . . . . . . . . . . . . . . . . . 1 . . . Weapon 55 | 2 3 5 5 2 2 2 . . . . . . 1 . . . . . . 1 1 1 2 3 2 11 12 Energy Gun 14 | . 1 . . . . 1 . . . . . . . . . . . . . . . . 1 1 2 4 4 Energy Cannon 14 | . . 2 3 1 . . . . . . . . 1 . . . . . . . 1 . 1 2 . 2 1 Ballistic Gun 9 | 2 1 1 . . . . . . . . . . . . . . . . . . . . . . . 3 2 Ballistic Cannon 10 | . . 2 1 . 2 1 . . . . . . . . . . . . . . . . . . . 2 2 Launcher 8 | . 1 . 1 1 . . . . . . . . . . . . . . . 1 . 1 . . . . 3 Special Weapon . | . . . . . . . . . . . . . . . . . . . . . . . . . . . . Impact Weapon . | . . . . . . . . . . . . . . . . . . . . . . . . . . . . Slashing Weapon . | . . . . . . . . . . . . . . . . . . . . . . . . . . . . Piercing Weapon . | . . . . . . . . . . . . . . . . . . . . . . . . . . . . Special Melee Weapon . | . . . . . . . . . . . . . . . . . . . . . . . . . . . . Unidentified Prototypes 89 | . 1 . 2 5 1 1 . . . . 4 . 7 . . 2 . 2 . 1 1 1 3 3 3 14 38 Corrupted Parts 13 | . . . . 1 . . . . . 2 1 . 3 . . 1 . 1 . 1 . . . 1 . 1 1 System Corruption 72 | . . . . 10 . . . . . 11 2 . 15 . . 10 . 3 . 5 . . . 7 . 6 3 Parts Lost 59 | . 3 3 2 4 2 1 1 . . . 1 2 2 2 . . . . . 4 . 1 5 2 1 2 21 Power 5 | . . . . . . . . . . . . . 1 . . . . . . . . . 1 . . . 3 Propulsion 6 | . 1 2 . 1 1 . . . . . . . . . . . . . . . . . . . . . 1 Utility 36 | . . . 1 2 1 1 1 . . . 1 2 1 2 . . . . . 3 . 1 2 2 1 2 13 Weapon 12 | . 2 1 1 1 . . . . . . . . . . . . . . . 1 . . 2 . . . 4 Highest Loss Streak 8 | . 1 1 1 2 2 1 1 . . . 1 2 1 2 . . . . . 1 . 1 4 1 1 2 8 To Critical Strikes 4 | . . . . . . . 1 . . . . . . . . . . . . 1 . . . . . . 2 Average Backups 14 | 4 9 15 14 14 14 14 13 15 13 11 14 10 7 8 8 8 9 8 9 10 12 11 17 17 16 17 20 Power . | . . 1 2 2 1 . . . . . . . . . . . . . . . . . . . . . . Propulsion . | 3 2 . 1 . 1 . . . . . . . . . . . . . . . . . . . . . . Utility 7 | . . 1 2 3 2 3 6 8 8 8 11 10 7 8 7 6 6 5 5 4 5 7 10 9 8 9 11 Weapon 5 | . 5 12 9 8 8 9 7 7 5 2 3 . . . 1 2 3 3 4 6 6 4 7 4 4 5 5 Tool/Special . | . . . . . . . . . . . . . . . . . . . . . . . . . . . . Unused Backups 133 | . 3 1 13 3 6 21 1 . 5 . 9 8 4 . 2 5 . . . . 5 5 10 9 4 . 19 Power 8 | . 1 . 3 . 2 . . . . . . . . . . . . . . . . . . . . . 2 Propulsion 12 | . 2 . . . . 6 . . . . . . . . . . . . . . . . . 3 1 . . Utility 36 | . . . 2 2 1 2 . . . . 4 7 3 . . 3 . . . . . 3 1 1 . . 7 Weapon 73 | . . 1 8 1 3 13 1 . 5 . 5 1 1 . 2 2 . . . . 5 2 9 5 3 . 6 Tool/Special 4 | . . . . . . . . . . . . . . . . . . . . . . . . . . . 4 Average Slot Usage (%) 56 | . 96 94 94 94 70 47 51 46 46 46 51 44 45 46 46 46 47 51 50 49 46 51 53 52 52 51 53 Engine 1 | . 14 14 . 1 6 4 5 . . . . 5 . . . . . . . . . . . . . . . Core 2 | . . . 8 8 1 1 . 6 6 6 3 . 3 . 5 5 2 . . . . 1 3 . . . . Reactor 1 | . . . . . . . . . . . . . 1 4 . . 2 5 5 4 4 3 . 4 4 4 3 Treads 4 | . 19 . 22 26 18 1 . . . . 4 5 1 . . . . . . 2 4 1 2 . 1 2 . Leg 2 | . . . . . 1 1 6 6 6 5 . . . 2 5 4 5 5 5 . . 3 . 2 . 1 2 Device 17 | . 12 14 8 10 12 15 24 20 20 20 24 17 20 22 22 18 11 15 14 17 13 11 13 20 18 16 21 Storage 5 | . 14 14 9 9 9 6 6 6 6 6 5 2 3 5 5 5 5 5 5 4 4 5 4 4 4 4 3 Processor 5 | . . . . . . . . . . . 1 5 1 . . 4 11 14 10 9 8 13 14 11 10 12 9 Protection 3 | . . . 16 15 7 4 . . . . 2 . . . . . . . . . 4 5 3 . 4 4 3 Energy Cannon 4 | . . 18 17 17 6 2 . . 1 6 3 5 2 3 . 3 5 5 5 2 . 2 3 4 1 2 2 Ballistic Cannon 1 | . . . 2 . . 3 6 6 4 . 1 . 2 1 5 1 . . . 2 4 2 . . 2 1 2 Peak Build Rating 242 | 6 23 12 53 47 63 94 97 89 87 92 123 118 130 143 137 136 140 155 149 173 162 153 156 181 201 212 242 Average Rating 124 | 4 8 11 33 44 47 79 92 85 85 83 105 110 117 134 130 132 138 147 146 148 153 143 143 156 187 197 216 On Entrance 103 | . 6 11 11 42 47 63 89 89 87 82 84 118 102 109 134 130 136 140 148 149 155 152 136 139 167 194 190 Avg Prop Armor Cover (%) 14 | 41 13 . 15 . . . . . . . . . . . . . . . . . . . . . . . . Naked Turns . | . . . . . . . . . . . . . . . . . . . . . . . . . . . . Heaviest Build 163 | 11 31 44 66 62 60 74 69 87 87 83 115 115 82 90 57 73 88 90 90 113 82 82 121 158 163 149 142 Greatest Support 269 | 40 40 32 84 84 84 151 139 139 91 137 202 202 202 155 104 188 188 188 188 183 183 235 269 163 198 198 251 Greatest Overweight (x) 3 | 2 1 2 3 1 1 . . . . . . . . . . . . . . 1 . . . 1 1 . . Average Overweight (x) . | . . 1 . . . . . . . . . . . . . . . . . . . . . . . . . Largest Inventory Capacity 25 | 8 15 15 15 15 15 15 15 15 15 15 20 20 10 10 10 10 10 15 15 15 15 15 20 20 20 20 25 Average Capacity 16 | 6 14 15 15 15 15 15 15 15 15 15 15 12 9 10 10 10 10 10 15 15 15 15 19 20 20 20 23 Most Carried 25 | 6 15 15 15 15 15 15 15 15 15 14 16 16 10 10 10 10 10 10 11 15 15 15 20 20 20 20 25 Average Carried 14 | 4 9 14 14 14 14 14 13 15 13 11 14 10 8 9 9 9 9 9 10 11 13 12 17 18 19 19 22 Final Capacity 25 | 8 15 15 15 15 15 15 15 15 15 15 20 5 10 10 10 10 10 15 15 15 15 15 20 20 20 20 25 Final Carried 20 | 6 15 15 15 15 15 12 15 15 10 14 16 5 10 10 10 10 10 9 11 15 11 15 13 20 20 20 19 Scrap Engine Consumption 384 | . . . . . 28 24 7 5 7 4 20 . 27 7 . 23 . 1 . 19 7 14 44 17 42 27 61 Constructs Created 23 | . . . . . 5 . . . . . . . . . . . . . . 4 . . . 5 . . 9 Constructs Modified 379 | . . . . . 20 38 4 3 3 1 28 . 27 39 1 8 3 . . 37 6 11 21 34 19 14 62 Class Distribution -------------------- 53% | Construct 26% | Scavenger-Construct 9% | Tank 5% | Mutant 3% | Commander-Construct Dominant Class ---------------- Mutant | -10/Materials Mutant | -10/Subcaves Tank | -8/Materials Tank | -8/Storage Tank | -8/Recycling Construct | -6/Factory Construct | -6/Lower Caves Construct | -6/Lower Caves Construct | -6/Zion Construct | -5/Proximity Caves Construct | -5/Factory Construct | -5/Waste Construct | -5/Factory Construct | -5/Upper Caves Construct | -5/Upper Caves Construct | -5/Warlord Construct | -4/Proximity Caves Construct | -4/Factory Commander-Construct | -4/Extension Construct | -4/Cetus Construct | -4/Archives Construct | -4/Hub_04(d) Construct | -3/Research Scavenger-Construct | -3/Quarantine Scavenger-Construct | -2/Research Scavenger-Construct | -2/Testing Scavenger-Construct | -2/Protoforge Resources | -11 -10 -10 -8 -8 -8 -6 -6 -6 -6 -5 -5 -5 -5 -5 -5 -5 -4 -4 -4 -4 -4 -4 -3 -3 -2 -2 -2 ----------- Run | Yrd Mat Sub Mat Sto Rec Fac Low Low Zio Pro Fac Was Fac Upp Upp War Pro Fac Ext Cet Arc Hub Res Qua Res Tes Frg Matter Collected 22751 | 218 395 285 1070 1006 536 1559 84 192 25 676 2606 5 1219 352 511 422 41 245 124 689 96 96 308 888 1353 1319 6431 Remotely . | . . . . . . . . . . . . . . . . . . . . . . . . . . . . Salvage Created 88355 | . 530 285 2082 2603 858 4668 780 325 . 1025 5362 . 5656 975 813 2880 1127 3386 6499 1449 454 1872 2218 3487 3997 4125 30899 Parts 3052 | . 29 25 91 131 24 125 15 18 . 21 159 . 190 36 17 98 35 52 95 52 22 71 69 120 161 193 1203 Haulers Intercepted 45 | . 2 . 4 6 . 2 . . . . 6 . 3 . . . 1 3 3 . . 6 5 1 . 3 . Recyclers Shooed 16 | . 2 . 3 1 2 . . . . . 3 . 3 . . . . . 1 . . . . 1 . . . Parts Field Recycled . | . . . . . . . . . . . . . . . . . . . . . . . . . . . . Retrieved Matter . | . . . . . . . . . . . . . . . . . . . . . . . . . . . . Parts Self-Destructed 113 | . . 6 . . . . 7 16 . 6 . . . 42 7 . 29 . . . . . . . . . . Prevented 41 | . . . . . . . 8 . . 13 . . . 1 13 . 6 . . . . . . . . . . Parts Restored 2 | . . . . . . . . . . . . . . . . . . . . . . . . . . . 2 Faulty 2 | . . . . . . . . . . . . . . . . . . . . . . . . . . . 2 Kills | -11 -10 -10 -8 -8 -8 -6 -6 -6 -6 -5 -5 -5 -5 -5 -5 -5 -4 -4 -4 -4 -4 -4 -3 -3 -2 -2 -2 ------- Run | Yrd Mat Sub Mat Sto Rec Fac Low Low Zio Pro Fac Was Fac Upp Upp War Pro Fac Ext Cet Arc Hub Res Qua Res Tes Frg Combat Hostiles Destroyed 1082 | . 13 10 27 51 10 70 13 4 . 21 61 . 75 22 15 46 19 39 70 21 4 14 24 39 42 35 337 Melee 3 | . . . . 1 . . . . . . . . . . . . . . . . . . . 1 . 1 . Guns 4 | . 4 . . . . . . . . . . . . . . . . . . . . . . . . . . Cannons 798 | . . 3 14 11 4 47 13 4 . 14 41 . 52 19 9 46 17 27 45 5 4 14 17 28 35 30 299 AOE 87 | . 9 7 8 33 4 . . . . . . . 4 . 2 . . . . 7 . . 3 1 . 2 7 Classes Destroyed 38 | . 6 2 5 4 . 5 2 . . 2 1 . . . . 3 . . . . . . 1 1 . 2 4 Worker 23 | . 1 . . 10 . 2 . . . . 3 . 4 . . . . 1 . . . 1 . . . . 1 Builder 23 | . . . 1 6 . 2 . . . . 4 . 2 . . . . 2 2 . . . . . . 3 1 Tunneler 7 | . . . . . . 2 . . . . 1 . 2 . . . . 1 1 . . . . . . . . Hauler 45 | . 2 . 4 6 . 2 . . . . 6 . 3 . . . 1 3 3 . . 6 5 1 . 3 . Recycler 50 | . 1 . 3 4 6 7 . . . . 10 . 9 . . . . 2 4 . . 1 . 2 . 1 . Carrier 17 | . . . . . . . . . . . 1 . . . . . . 2 3 . . . . . 2 . 9 Minesweeper 1 | . . . . . . . . . . 1 . . . . . . . . . . . . . . . . . Mechanic 24 | . . . . 2 . 1 . . . 1 . . 1 . . 2 . . . . . . . . . . 17 Operator 25 | . . . . 3 . . . . . . 4 . 1 . . . . 1 . . 3 . . 9 1 1 2 Drone 13 | . . . . . . 1 . . . 2 . . . . . . 1 . . . . . . . . . 9 Turret 2 | . . 2 . . . . . . . . . . . . . . . . . . . . . . . . . Watcher 72 | . 2 . 3 2 . 5 . . . . 6 . 5 . . . . 6 1 2 . 2 . 3 2 1 32 Swarmer 82 | . 3 3 3 3 1 . 1 . . 2 4 . 9 9 3 9 6 13 3 5 . . 5 . . . . Saboteur 15 | . . . . . . 1 . . . . . . 1 . . 1 . . 1 . . . . . . 2 9 Grunt 434 | . 10 . 12 38 1 38 4 . . 6 18 . 30 9 9 10 9 9 21 4 . 6 8 19 12 12 149 Brawler 59 | . . . 2 3 . 8 3 . . 1 2 . 2 . . 8 . . 4 . . . . 3 . 1 22 Duelist 42 | . . . . 2 1 3 1 . . 3 2 . 1 . . 1 . . 5 . . . . 1 . 3 19 Protector 33 | . . . . 2 . 1 . . . . 1 . 2 . . 2 . . 3 . . . . 2 1 1 18 Researcher 8 | . . . . . . . . . . . . . . . . . . . . . . . . . . 3 5 Sentry 101 | . . . 7 3 3 10 1 . . 2 10 . 5 3 1 . 1 5 20 . 4 4 3 2 1 . 16 Demolisher 10 | . . . . . . . . . . . . . . . . 3 . . 4 . . . . . 2 1 . Specialist 21 | . . . . . . . 2 2 . . . . 2 . 2 1 . . 1 . . 2 . 1 1 . 7 Hunter 62 | . . . 2 . . 5 . 1 . 2 7 . 8 . . 3 . 8 4 4 . . 4 . 6 2 6 Programmer 89 | . . . . . . 2 1 1 . . 16 . 12 . . 3 . 3 1 . . 2 . 10 7 9 22 Heavy 4 | . . . 1 . . . . . . . . . 2 . . . . 1 . . . . . . . . . Q-Series 6 | . . . . . . . . . . . . . . . . . . . . . . . . . . . 6 Behemoth 10 | . . . . . . 1 . . . 1 1 . 1 . . 3 . . 2 . . . . . 1 . . Cetus Guard 8 | . . . . . . . . . . . . . . . . . . . . 8 . . . . . . . Hotshot 23 | . . . . . . . . . . . . . . . . . . . . . . . . . . . 23 Decapitator 13 | . . . . . . . . . . . . . . . . . . . . . . . . . . . 13 Immortal 8 | . . . . . . . . . . . . . . . . . . . . . . . . . . . 8 Overlord 1 | . . . . . . . . . . . . . . . . . . . . . . . . . . . 1 Striker 11 | . . . . . . . . . . . . . . . . 1 . . . . . . 3 . 5 1 1 Executioner 8 | . . . . . . . . . . . . . . . . 1 . . . . . . 1 . 6 . . Alpha 7 4 | . . . . . . . . . . . . . . . . . . . . . . . . 1 . 1 2 Fortress 1 | . . . . . . . . . . . . . . . . . . . . . . . . . . 1 . V-Series 9 | . . . . . . . . . . . . . . . . . . . . . . . . . . . 9 Protovariant Y 1 | . . . . . . . . . . . . . . . . . . . . . . . . . . 1 . Subdweller 12 | . . 7 . . 5 . . . . . . . . . . . . . . . . . . . . . . Packrat 1 | . . . . . . . . . . . . . . 1 . . . . . . . . . . . . . Samaritan 2 | . . . . . . . 1 1 . . . . . . . . . . . . . . . . . . . Tinkerer 1 | . . . . . . . . . . . . . . . . . . . . . . . . . . . 1 Wasp 2 | . . . . . . . . . . . . . . . . . . . . . . . . . . . 2 Thug 7 | . . . . . . . . . . . . . . . . 3 2 . 2 . . . . . . . . Savage 1 | . . . . . . . . . . . . . . 1 . . . . . . . . . . . . . Butcher 1 | . . . . . . . . . . . . . . . . . . . 1 . . . . . . . . Fireman 2 | . . . . . . . . . . 2 . . . . . . . . . . . . . . . . . Revision 1 | . . . . . . . . . . . . . . . . . . . . . . . 1 . . . . Best Kill Streak 47 | . 7 6 5 14 3 22 9 2 . 10 9 . 13 9 10 10 6 23 47 7 4 6 6 9 11 8 36 Combat Bots Only 44 | . 6 4 4 10 3 13 9 2 . 8 6 . 8 9 10 9 5 11 44 7 2 5 6 9 10 6 21 Max Kills in Single Turn 5 | . 2 2 1 5 2 2 2 1 . 1 2 . 2 1 2 1 1 1 2 4 3 1 1 2 2 1 5 Gunslinging . | . . . . . . . . . . . . . . . . . . . . . . . . . . . . Exploded 4 | . 2 2 1 4 1 . . . . . . . 2 . 2 . . . . 4 . . 1 1 . 1 4 Melee 1 | . . . . 1 . . . . . . . . . . . . . . . . . . . 1 . 1 . Uniques/NPCs Destroyed . | . . . . . . . . . . . . . . . . . . . . . . . . . . . . Combat | -11 -10 -10 -8 -8 -8 -6 -6 -6 -6 -5 -5 -5 -5 -5 -5 -5 -4 -4 -4 -4 -4 -4 -3 -3 -2 -2 -2 -------- Run | Yrd Mat Sub Mat Sto Rec Fac Low Low Zio Pro Fac Was Fac Upp Upp War Pro Fac Ext Cet Arc Hub Res Qua Res Tes Frg Hostile Shots Fired 3741 | . 57 48 59 56 26 215 64 9 . 26 159 4 361 151 25 85 37 65 92 124 31 66 125 187 248 394 1027 Missed 1251 | . 13 19 15 14 6 86 21 3 . 10 59 1 136 32 8 34 13 22 33 33 13 21 24 60 83 144 348 Deflected 24 | . . . . . . . . . . . . . . 17 . . . . . . . . . . . . 7 Hits 2490 | . 44 29 44 42 20 129 43 6 . 16 100 3 225 119 17 51 24 43 59 91 18 45 101 127 165 250 679 Melee 67 | . . . . . . 3 5 . . . . 3 . . . 1 . . 1 . . . 5 . 7 13 29 Projectile 2423 | . 44 29 44 42 20 126 38 6 . 16 100 . 225 119 17 50 24 43 58 91 18 45 96 127 158 237 650 AOE 32 | . . . . . . . . . . . . . . . . 2 . . 3 . . . . . 1 . 26 Critical Strikes 159 | . . . 4 . 4 2 3 . . 1 6 1 10 4 . 3 2 . 10 8 . 1 6 7 9 15 63 Actively Blocked 1 | . . . 1 . . . . . . . . . . . . . . . . . . . . . . . . Part Disruptions 4 | . . . . . . . . . . . 1 . . . . . . . . . . . 1 . . . 2 Damage Taken 47976 | . 596 444 871 689 377 2170 854 79 . 220 1695 127 4236 1756 386 1456 402 593 1087 1962 438 867 2139 1998 2143 4033 16358 Core 4182 | . 82 115 121 61 15 133 149 12 . 35 138 . 402 134 20 98 31 33 122 156 49 141 250 209 281 222 1173 Absorbed by Shields 8901 | . . . 109 . . . . 29 . 78 363 . . . . . . 335 515 125 . . 881 527 2016 1835 2088 Reduced by Siege Mode 78 | . . . . . . . . . . . . . . . . . . . . . . . . . . . 78 Redirected to Shielding 330 | . . . 73 164 44 . . . . . . . . . . . . . . . . . . . . . 49 Ignored by Resistances 2197 | . . . 11 . . . . . . . . . . . . . . . . . . 51 . . . . 2135 Regen/Repaired (Parts) 25186 | . . . . . 20 686 488 344 128 134 802 . 1711 2719 . 1481 421 . . 2342 283 292 1077 1560 1174 742 8782 Core Remaining (%) 75 | 100 . 21 . . 87 . . . . 84 . . . . . . 71 . . . . 83 . 84 . . . Volleys Fired 2997 | . 90 20 67 106 58 182 31 8 . 37 168 1 275 90 34 109 45 84 141 40 21 68 107 125 145 93 852 Largest 3 | . 2 2 3 3 1 1 1 1 . 1 1 1 1 1 1 1 1 1 1 2 1 1 2 2 1 1 3 Hottest 385 | . 60 160 207 207 70 70 40 40 . 78 206 206 351 268 268 268 121 121 121 121 42 126 239 274 155 87 385 Shots Fired 3038 | . 120 26 132 159 59 182 31 8 . 37 168 1 256 84 31 104 44 83 139 39 21 68 108 129 145 91 773 Gun 119 | . 103 1 . . 15 . . . . . . . . . . . . . . . . . . . . . . Cannon 2783 | . . 12 111 107 33 182 31 8 . 37 168 1 256 84 31 104 44 83 139 33 21 68 95 129 145 91 770 Launcher 136 | . 17 13 21 52 11 . . . . . . . . . . . . . . 6 . . 13 . . . 3 Special . | . . . . . . . . . . . . . . . . . . . . . . . . . . . . Kinetic 1040 | . 102 3 4 . 10 72 . 7 . . 40 . 116 7 . . . . . 17 21 22 54 2 94 34 435 Thermal 529 | . . 10 11 . 1 9 15 . . . 8 . 8 68 . . . . . 1 . 46 20 55 2 15 260 Explosive 88 | . 17 13 . 45 11 . . . . . . . . . . . . . . . . . . . . . 2 Electromagnetic 1211 | . 1 . 117 114 37 101 16 1 . 37 120 1 132 9 31 1 15 83 139 21 . . 31 65 49 14 76 Entropic 170 | . . . . . . . . . . . . . . . . 103 29 . . . . . 3 7 . 28 . Robot Hit Streak 67 | . 6 7 16 10 20 21 12 8 . 12 18 9 9 7 6 8 4 15 12 8 9 12 11 15 15 9 67 Robot Miss Streak 10 | . 4 2 3 3 2 6 2 4 . 10 8 . 7 7 3 4 3 3 3 9 3 2 4 4 7 4 8 Penetration Max 2 | . . . . . . 2 . . . . 1 . 1 . . . . . . 1 1 . 1 . 1 1 2 Secondary Targets . | . . . . . . . . . . . . . . . . . . . . . . . . . . . . Shots Hit Robots 1966 | . 70 7 76 72 47 147 28 8 . 31 145 1 122 34 18 70 22 57 88 22 16 52 64 77 106 58 528 Core Hits 1362 | . 28 19 41 137 18 132 19 6 . 33 101 . 71 14 12 33 11 29 44 39 12 25 44 57 53 43 341 Critical Kills 68 | . 1 . 1 . 1 1 . . . . 7 . . 3 . 2 1 2 6 1 2 . 5 8 3 1 23 Critical Parts Destroyed 48 | . 2 . . . . . . . . . 9 . . 4 1 6 . 3 6 1 . . 4 4 7 . 1 Critical Strikes 145 | . 3 . 5 1 2 2 . 1 . . 16 . 5 8 1 10 1 5 14 2 2 6 9 15 11 2 24 Burn 7 | . . . . . . . . . . . . . . 1 . . . . . . . 6 . . . . . Meltdown 25 | . . . 1 . . . . . . . . . . 3 . . . . . . . . . . . . 21 Destroy 96 | . 3 . . . 1 1 . . . . 16 . . 4 1 10 1 5 14 2 2 . 9 12 11 1 3 Blast 8 | . . . 1 . 1 1 . 1 . . . . 3 . . . . . . . . . . . . 1 . Corrupt 6 | . . . 3 1 . . . . . . . . 2 . . . . . . . . . . . . . . Sunder 3 | . . . . . . . . . . . . . . . . . . . . . . . . 3 . . . Melee Attacks 1 | . . . . . . . . . . . . . . . . . . . . . . . . . . . 1 Impact . | . . . . . . . . . . . . . . . . . . . . . . . . . . . . Slashing 1 | . . . . . . . . . . . . . . . . . . . . . . . . . . . 1 Piercing . | . . . . . . . . . . . . . . . . . . . . . . . . . . . . Sneak Attacks . | . . . . . . . . . . . . . . . . . . . . . . . . . . . . Combat Hostiles . | . . . . . . . . . . . . . . . . . . . . . . . . . . . . Follow-up Attacks . | . . . . . . . . . . . . . . . . . . . . . . . . . . . . Damage Inflicted 299960 | . 1573 802 2940 7247 2089 12643 2703 725 . 2495 13424 14 18386 3458 2273 18479 4837 11872 17973 3556 1105 4510 4348 8172 12182 14124 128030 Guns 938 | . 634 . . . 304 . . . . . . . . . . . . . . . . . . . . . . Cannons 276880 | . . 127 2144 1850 869 12309 2703 725 . 2495 12909 14 17367 3458 2030 18329 4837 11868 17776 2479 937 4486 3696 7706 12105 12843 120818 Explosions 21725 | . 938 675 780 5360 916 334 . . . . 476 . 950 . 243 147 . . 55 1077 168 . 652 440 77 1225 7212 Melee . | . . . . . . . . . . . . . . . . . . . . . . . . . . . . Ramming 374 | . 1 . 16 37 . . . . . . 39 . 69 . . 3 . 4 142 . . 24 . 26 . 13 . Kinetic 118503 | . 634 20 37 . 170 4819 . 625 . . 3384 . 8373 227 . . . . . 964 937 1068 2252 182 8103 4818 81890 Thermal 56391 | . . 107 224 . 174 497 1288 . . . 1249 . 1647 2993 243 147 . . . 265 168 3418 858 2179 520 1671 38743 Explosive 8727 | . 938 675 . 4825 742 98 . . . . . . . . . . . . . . . . . 361 . 1047 41 Electromagnetic 88149 | . . . 2663 2385 1003 7229 1415 100 . 2495 8752 14 8297 238 2030 . 1720 11868 17831 2327 . . 1238 5010 3559 2353 5622 Impact . | . . . . . . . . . . . . . . . . . . . . . . . . . . . . Slashing 43 | . . . . . . . . . . . . . . . . . . . . . . . . . . 43 . Piercing . | . . . . . . . . . . . . . . . . . . . . . . . . . . . . Entropic 27773 | . . . . . . . . . . . . . . . . 18329 3117 . . . . . . 414 . 4179 1734 Highest Corruption 85 | . . . 8 12 29 . 4 5 5 11 8 21 50 50 50 29 9 4 7 12 12 7 1 16 4 21 85 Average Corruption 20 | . . . 2 10 14 . 4 4 5 7 2 15 32 50 33 24 9 3 6 11 12 5 1 6 1 15 53 Corruption Purged 5 | . . . . . . . . . . . . . . . . . . 5 . . . . . . . . . Corruption Blocked . | . . . . . . . . . . . . . . . . . . . . . . . . . . . . Effects 1157 | . . . 5 58 70 . 22 19 5 2 32 7 166 76 45 31 8 12 26 42 3 7 4 74 7 79 357 Message Errors 249 | . . . 3 9 20 . 5 8 . . 6 1 38 19 12 9 1 3 3 8 1 3 . 17 2 22 59 Matter Fused 263 | . . . 2 15 17 . 5 4 3 2 7 . 27 18 12 5 2 4 11 13 2 3 2 23 . 24 62 Heat Flow Errors 122 | . . . . 6 7 . 2 1 . . 6 2 19 8 4 3 1 1 8 3 . . . 12 2 5 32 Energy Discharges 117 | . . . . 8 7 . 4 2 1 . 7 1 19 7 7 3 2 . 1 7 . . . 4 1 4 32 Parts Rejected 19 | . . . . . . . . . . . 2 . 4 2 1 . . 1 . 1 . . . 2 . 2 4 Parts Fused 9 | . . . . 1 1 . . . . . . . . . . . . . . . . . . 1 1 2 3 Data Loss (minor) 109 | . . . . 7 7 . 5 . 1 . 4 1 13 10 2 4 1 1 1 3 . 1 1 12 1 6 28 Data Loss (major) 42 | . . . . 3 6 . 1 3 . . . . 7 1 1 . . 1 . 4 . . 1 1 . 3 10 Misfires 9 | . . . . 7 2 . . . . . . . . . . . . . . . . . . . . . . Alerts 30 | . . . . 1 1 . . 1 . . . . 10 3 2 . . . . 1 . . . 1 . 2 8 Misdirections 47 | . . . . . 1 . . . . . . 2 10 2 1 2 . . . . . . . . . 7 22 Weapon Failures 141 | . . . . 1 1 . . . . . . . 19 6 3 5 1 1 2 2 . . . 1 . 2 97 Overload Shots 9 | . . . . . . . . . . . . . . . . . . . . . . 9 . . . . . Overflow Damage 47542 | . 17 11 71 173 124 390 573 81 . 102 969 . 3403 692 161 4329 1415 3244 4272 192 10 543 79 932 1595 1993 22171 Projectiles 46127 | . . . 5 110 107 327 573 81 . 102 850 . 3352 692 161 4329 1415 3244 4272 192 . 543 79 922 1595 1971 21205 Explosions 1413 | . 17 11 66 63 17 63 . . . . 119 . 49 . . . . . . . 10 . . 10 . 22 966 Melee 2 | . . . . . . . . . . . . . 2 . . . . . . . . . . . . . . Knockbacks 305 | . . . . . . 27 . . . . 16 . 22 1 . . . . 1 10 . 7 8 . 41 9 163 Impact 2 | . . . . . . . . . . . . . 1 . . . . . 1 . . . . . . . . Kinetic 261 | . . . . . . 25 . . . . 15 . 16 1 . . . . . 6 . 7 7 . 39 7 138 Secondary 42 | . . . . . . 2 . . . . 1 . 5 . . . . . . 4 . . 1 . 2 2 25 Self-Inflicted Damage 1891 | . 66 146 264 38 37 33 . . . . 85 . 39 . . . . . . 103 . . 168 58 . 38 816 Shots 51 | . 4 5 9 2 1 2 . . . . 1 . 1 . . . . . . 11 . . 11 1 . 1 2 Rammed 18 | . . . 2 4 . . . . . . 4 . 5 1 . . . . . . . 1 . 1 . . . Targets Rammed 32 | . 1 . 3 6 . . . . . . 5 . 5 1 . 1 . 1 3 . . 3 . 2 . 1 . Kicked 8 | . . . . . . . . . . . . . . . . 1 . 1 3 . . 2 . . . 1 . Crushed 6 | . 1 . 1 2 . . . . . . 1 . . . . . . . . . . . . 1 . . . Highest Temperature 746 | . 20 186 369 361 305 108 183 187 . 312 329 163 405 348 366 277 213 321 416 229 121 302 428 451 322 226 746 Average Temperature 93 | . 6 84 116 86 53 34 63 55 . 79 79 90 105 135 135 70 80 56 89 53 49 61 121 135 81 102 138 Received Heat Transfer 7870 | . 249 138 345 315 81 624 225 . . 87 87 . 544 504 90 105 54 23 180 192 45 204 173 229 108 503 2765 Effects 25 | . . . 1 1 . . . . . . 1 . 2 . . 3 . . 3 . . . 4 5 . . 5 Shutdowns 3 | . . . 1 . . . . . . . . . . . . . . . 1 . . . . 1 . . . Energy Bleed 3 | . . . . 1 . . . . . . . . . . . . . . . . . . 1 1 . . . Interference 18 | . . . . . . . . . . . 1 . 2 . . 3 . . 2 . . . 3 2 . . 5 Short Circuit 1 | . . . . . . . . . . . . . . . . . . . . . . . . 1 . . . Siege Activations 3 | . . . . . . . . . . . 1 . . . . . . . . . . . . . . . 2 Total Turns 67 | . . . . . . . . . . . 7 . . . . . . . . . . . . . . . 60 Longest Duration 46 | . . . . . . . . . . . 7 . . . . . . . . . . . . . . . 46 Martial Activations . | . . . . . . . . . . . . . . . . . . . . . . . . . . . . Shielding Activations 4 | . . . . . . . . . . . . . . 3 . . . . . . . . . . . . 1 Total Turns 125 | . . . . . . . . . . . . . . 63 . . . . . . . . . . . . 62 Longest Duration 62 | . . . . . . . . . . . . . . 44 . . . . . . . . . . . . 62 Robots Disrupted 2 | . . . . . . . . . . . . . . . . . . . . 1 . . . . 1 . . Combat Hostiles 2 | . . . . . . . . . . . . . . . . . . . . 1 . . . . 1 . . Robots Corrupted 192 | . . . 5 8 2 24 . . . 8 23 . 21 1 4 . 2 15 28 9 . . 4 10 8 2 18 Combat Hostiles 169 | . . . 4 6 2 23 . . . 7 20 . 18 1 4 . 2 12 25 9 . . 4 9 7 2 14 Parts Fried 769 | . . . 20 15 6 37 5 . . 9 75 . 70 4 15 . 10 94 154 15 . . 10 59 59 25 87 Impact Corruptions 14 | . . . . . . . . . . . . . 2 . . . . . . 1 . . . . . 1 10 Robots Melted 25 | . . . 1 . . . . . . . . . . 3 . . . . . . . . . . . . 21 Combat Hostiles 21 | . . . 1 . . . . . . . . . . 2 . . . . . . . . . . . . 18 Parts Melted 52 | . . . 4 . 1 . . . . . 1 . 1 4 . . . . . . . 1 . . . 1 39 Heat Transferred 10179 | . . 148 296 . 150 150 444 . . . 868 . 785 1559 162 100 . . . 200 150 1660 509 1173 50 87 1688 Parts Sabotaged . | . . . . . . . . . . . . . . . . . . . . . . . . . . . . Parts Stolen . | . . . . . . . . . . . . . . . . . . . . . . . . . . . . Parts Stripped . | . . . . . . . . . . . . . . . . . . . . . . . . . . . . Power Chain Reactions 22 | . . . 3 . 2 . . . . . . . 1 . 2 1 . . 1 2 1 . 1 1 1 2 4 Alert | -11 -10 -10 -8 -8 -8 -6 -6 -6 -6 -5 -5 -5 -5 -5 -5 -5 -4 -4 -4 -4 -4 -4 -3 -3 -2 -2 -2 ------- Run | Yrd Mat Sub Mat Sto Rec Fac Low Low Zio Pro Fac Was Fac Upp Upp War Pro Fac Ext Cet Arc Hub Res Qua Res Tes Frg Maximum Alert Level 5 | . 1 . 2 4 2 5 . . . . 5 3 5 . . . . 5 5 5 3 2 2 3 4 5 5 Low Security (%) 12 | 100 80 . 80 9 24 . . . . . 11 . . . . . . . . . . . 51 . . . . Level 1 13 | . 19 . 13 35 65 3 . . . . 16 . . . . . . . . . . 18 33 25 . . . Level 2 12 | . . . 5 7 10 10 . . . . 3 . 15 . . . . 4 . . . 81 14 44 20 . . Level 3 13 | . . . . 11 . 26 . . . . 8 100 12 . . . . 38 . . 100 . . 29 40 33 . Level 4 15 | . . . . 35 . 22 . . . . 25 . 20 . . . . 49 42 . . . . . 39 31 10 Level 5 26 | . . . . . . 24 . . . . 35 . 46 . . . . 3 14 100 . . . . . 14 83 High Security 4 | . . . . . . 12 . . . . . . 4 . . . . 4 43 . . . . . . 19 6 Max Security . | . . . . . . . . . . . . . . . . . . . . . . . . . . . . Sterilizations 1 | . . . 1 . . . . . . . . . . . . . . . . . . . . . . . . Peak Influence 13773 | . 260 . 470 1343 472 2486 . . . . 2505 876 3395 . . . . 1897 4566 2615 1093 546 529 903 1593 2229 13773 Initial 2531 | . . . . 191 472 394 . . . . 181 876 557 . . . . 565 1100 2531 1021 361 258 276 468 888 1253 Average 1678 | . 109 . 155 678 291 1336 . . . . 1255 840 1676 . . . . 1172 2180 2477 1061 476 234 574 987 1399 5645 Influence Increases 44918 | . 467 145 983 1805 582 3346 285 110 . 446 3406 . 3614 565 373 945 390 2176 3990 540 134 533 843 1714 1827 1979 13720 Destroy 0b10 Robot/C 22540 | . 260 100 540 1000 140 1560 280 80 . 380 1380 . 1500 460 340 880 360 820 1720 420 80 280 480 740 860 1140 6740 Destroy 0b10 Robot/NC 1600 | . 30 . 60 175 40 105 . 10 . 20 185 . 140 . . 20 10 80 85 10 15 50 25 85 20 55 380 Destroy Leader 3234 | . 68 . 154 176 . 284 . 20 . 30 356 . 304 . . . 20 198 174 40 . 74 110 98 214 118 796 Allied During Kill 2426 | . . . . 21 12 108 5 . . 1 123 . 26 . 18 . . . 1540 . . . . . 19 264 289 Successful Hack 129 | . . . 12 19 . 18 . . . . 11 . . . . . . . 27 . . 18 . 24 . . . Select Force Hacks 60 | . . . . . 60 . . . . . . . . . . . . . . . . . . . . . . Disable Machine 2895 | . 15 . 120 120 45 585 . . . . 555 . 450 . . . . 15 60 . 15 30 60 225 60 150 390 Anti-Garrison Action 600 | . . . . . . 150 . . . . . . . . . . . . . . . . . . 300 . 150 Destroy Structure 6725 | . 94 . 67 129 55 196 . . . . 586 . 374 . . . . 42 60 70 24 36 78 204 309 147 4254 Advance Influence 850 | . . . . . . 250 . . . . 150 . . . . . . 450 . . . . . . . . . Partial Spotted 90 | . . . . . . 30 . . . . . . 15 . . . . 30 . . . 15 . . . . . Lose Combat Pursuer 1695 | . . 45 30 165 . 60 . . . 15 60 . 225 105 15 45 . 45 120 . . 30 90 . 45 105 495 Miscellaneous 2074 | . . . . . 230 . . . . . . . 580 . . . . 496 204 . . . . 338 . . 226 Influence Decreases 31317 | . 356 256 528 1047 1451 1204 1388 658 835 396 953 1707 1025 1755 806 1982 931 463 1539 2507 1652 1076 843 1374 1078 1331 2176 Entered New Map 17037 | . . 54 . 264 741 200 920 264 835 . 19 1627 239 1253 418 1762 725 69 969 1989 1532 674 234 216 364 693 976 Time Decay 11418 | . 291 172 511 553 630 604 458 374 . 376 694 60 686 482 368 220 206 294 230 478 120 392 559 688 664 538 770 Search Patrol Dispatched 100 | . . . . . . . . . . . . . . . . . . 100 . . . . . . . . . Lost Part 567 | . 10 30 17 40 20 10 10 . . . 10 20 20 20 . . . . . 40 . 10 50 20 10 20 210 Lost Ally 1240 | . . . . 40 60 240 . 20 . 20 80 . 80 . 20 . . . 340 . . . . . 40 80 220 Purge Threat 955 | . 55 . . 150 . 150 . . . . 150 . . . . . . . . . . . . 450 . . . Squads Dispatched 231 | . 4 . 5 12 . 25 . . . 1 21 . 24 . 1 . . 6 17 . . 3 8 7 1 22 74 Investigation 24 | . 2 . 3 5 . 2 . . . . 3 . 1 . 1 . . . 2 . . . 5 . . . . Extermination 35 | . . . . . . 4 . . . . 7 . 6 . . . . 1 . . . 1 . 4 . 3 9 Reinforcement 36 | . 2 . 2 3 . 3 . . . . 5 . 5 . . . . 3 1 . . 1 3 . 1 2 5 Assault 132 | . . . . 4 . 16 . . . 1 3 . 12 . . . . 2 14 . . . . 3 . 17 60 Garrison 4 | . . . . . . . . . . . 3 . . . . . . . . . . 1 . . . . . Intercept . | . . . . . . . . . . . . . . . . . . . . . . . . . . . . Searches Triggered 1 | . . . . . . . . . . . . . . . . . . 1 . . . . . . . . . Construction Impeded 6 | . . . . 1 . 1 . . . . 1 . 1 . . . . . 1 . . . . . . . 1 Haulers Reinforced 5 | . . . . . . 2 . . . . 2 . . . . . . . . . . . 1 . . . . Active Scanning Responses . | . . . . . . . . . . . . . . . . . . . . . . . . . . . . Cargo Convoy Interrupts 1 | . . . . . . . . . . . . . 1 . . . . . . . . . . . . . . Stealth | -11 -10 -10 -8 -8 -8 -6 -6 -6 -6 -5 -5 -5 -5 -5 -5 -5 -4 -4 -4 -4 -4 -4 -3 -3 -2 -2 -2 --------- Run | Yrd Mat Sub Mat Sto Rec Fac Low Low Zio Pro Fac Was Fac Upp Upp War Pro Fac Ext Cet Arc Hub Res Qua Res Tes Frg Distress Signals 53 | . . . . 3 1 5 . . . . 4 . 1 . . . . 1 5 2 1 3 9 1 5 2 10 Communications Jammed . | . . . . . . . . . . . . . . . . . . . . . . . . . . . . Distress Signals . | . . . . . . . . . . . . . . . . . . . . . . . . . . . . Times Spotted 1523 | . 19 16 32 70 12 83 13 4 . 21 73 6 117 33 16 89 19 41 132 28 8 28 39 53 51 100 420 Peak Tracking Total 27 | . 6 6 3 12 2 7 9 1 . 7 5 6 7 10 13 11 5 7 27 6 3 8 6 9 4 24 19 Tactical Retreats 69 | . . 2 2 7 1 4 . . . 1 3 . 7 5 1 3 . 1 5 . . 1 4 . 3 4 15 Traps | -11 -10 -10 -8 -8 -8 -6 -6 -6 -6 -5 -5 -5 -5 -5 -5 -5 -4 -4 -4 -4 -4 -4 -3 -3 -2 -2 -2 ------- Run | Yrd Mat Sub Mat Sto Rec Fac Low Low Zio Pro Fac Was Fac Upp Upp War Pro Fac Ext Cet Arc Hub Res Qua Res Tes Frg Traps Triggered 45 | . 2 . 2 1 . 3 . . . . 7 . 5 . . 1 . . 7 . . 1 2 1 . 1 12 Indirectly 2 | . . . 1 . . . . . . . . . . . . . . . . . . . 1 . . . . Trap Hack Attempts . | . . . . . . . . . . . . . . . . . . . . . . . . . . . . Triggered . | . . . . . . . . . . . . . . . . . . . . . . . . . . . . Disarmed . | . . . . . . . . . . . . . . . . . . . . . . . . . . . . Reprogrammed . | . . . . . . . . . . . . . . . . . . . . . . . . . . . . Reused . | . . . . . . . . . . . . . . . . . . . . . . . . . . . . Traps Extracted . | . . . . . . . . . . . . . . . . . . . . . . . . . . . . Installed . | . . . . . . . . . . . . . . . . . . . . . . . . . . . . Triggered . | . . . . . . . . . . . . . . . . . . . . . . . . . . . . Machines | -11 -10 -10 -8 -8 -8 -6 -6 -6 -6 -5 -5 -5 -5 -5 -5 -5 -4 -4 -4 -4 -4 -4 -3 -3 -2 -2 -2 ---------- Run | Yrd Mat Sub Mat Sto Rec Fac Low Low Zio Pro Fac Was Fac Upp Upp War Pro Fac Ext Cet Arc Hub Res Qua Res Tes Frg Machines Disabled 234 | . 1 4 8 8 3 40 . . . . 37 . 30 3 2 3 . 3 4 . 1 2 4 15 6 11 49 Max in Single Turn 13 | . 1 3 2 1 1 5 . . . . 11 . 13 1 1 1 . 1 1 . 1 1 1 4 1 1 5 Garrison Access 9 | . . . . . . 1 . . . . 1 . . . . . . 1 . . . 1 . 1 3 . 1 Energy Cycler 2 | . . . . . . . . . . . . . . . . . . . 2 . . . . . . . . Machines Repaired . | . . . . . . . . . . . . . . . . . . . . . . . . . . . . Machines Dismantled . | . . . . . . . . . . . . . . . . . . . . . . . . . . . . Machines Sabotaged . | . . . . . . . . . . . . . . . . . . . . . . . . . . . . Overloaded Fab Kills . | . . . . . . . . . . . . . . . . . . . . . . . . . . . . Hacking | -11 -10 -10 -8 -8 -8 -6 -6 -6 -6 -5 -5 -5 -5 -5 -5 -5 -4 -4 -4 -4 -4 -4 -3 -3 -2 -2 -2 --------- Run | Yrd Mat Sub Mat Sto Rec Fac Low Low Zio Pro Fac Was Fac Upp Upp War Pro Fac Ext Cet Arc Hub Res Qua Res Tes Frg Machines Accessed 97 | . 2 . 4 8 6 10 1 2 . . 7 . 8 1 2 2 . 6 11 . . 4 3 9 3 4 4 Terminals 59 | . 2 . 3 8 . 3 . . . . 4 . 6 1 1 . . 3 11 . . 3 2 6 . 3 3 Fabricators 3 | . . . . . . 1 . . . . 1 . 1 . . . . . . . . . . . . . . Repair Stations 2 | . . . . . . . . . . . . . . . . . . 1 . . . . . . . . 1 Recycling Units 10 | . . . . . 5 3 . . . . 1 . . . . . . 1 . . . . . . . . . Scanalyzers 6 | . . . 1 . . 2 . . . . . . . . . . . . . . . . 1 2 . . . Garrison Access 10 | . . . . . . 1 . . . . 1 . 1 . . . . 1 . . . 1 . 1 3 1 . Total Hacks 208 | . 4 . 10 21 17 21 1 2 . . 21 . 14 7 5 4 . 10 16 . . 8 8 20 5 8 6 Successful 90 | . 2 . 4 7 7 8 1 2 . . 11 . 3 7 5 4 . 3 6 . . 3 1 12 1 1 2 Failed 117 | . 2 . 6 14 10 13 . . . . 10 . 11 . . . . 7 10 . . 5 7 7 4 7 4 Catastrophic 36 | . 2 . . 6 2 2 . . . . 1 . 6 . . . . 1 4 . . 2 1 1 2 4 2 Database Lockouts 1 | . . . . . . . . . . . . . . . . . . . . . . . . 1 . . . Manual 75 | . 3 . 4 12 3 3 . . . . 8 . 8 . . 1 . 5 4 . . 4 3 10 . 4 3 Terminals 132 | . 4 . 6 21 . 5 . . . . 16 . 12 7 4 . . 6 16 . . 6 3 16 . 6 4 Fabricators 5 | . . . . . . 2 . . . . 2 . 1 . . . . . . . . . . . . . . Repair Stations 3 | . . . . . . . . . . . . . . . . . . 1 . . . . . . . . 2 Recycling Units 22 | . . . . . 15 5 . . . . 1 . . . . . . 1 . . . . . . . . . Scanalyzers 19 | . . . 4 . . 7 . . . . . . . . . . . . . . . . 5 3 . . . Garrison Access 17 | . . . . . . 2 . . . . 2 . 1 . . . . 2 . . . 2 . 1 5 2 . Terminal Hacks 55 | . 2 . . 6 2 3 1 2 . . 5 . 1 7 5 4 . . 5 . . 2 . 7 . 1 2 Record 14 | . . . . . . . . . . . . . . 7 4 3 . . . . . . . . . . . Prototype ID Bank 4 | . . . . . . . . . . . 1 . . . . . . . 1 . . . . 2 . . . Open Door 11 | . . . . 2 . . 1 2 . . . . . . 1 1 . . 4 . . . . . . . . Level Access Points 1 | . . . . . . . . . . . . . . . . . . . . . . 1 . . . . . Branch Access Points 3 | . . . . 1 . 1 . . . . 1 . . . . . . . . . . . . . . . . Alert Level 11 | . 1 . . 2 . 1 . . . . 2 . 1 . . . . . . . . . . 2 . 1 1 Unreport Threat 7 | . 1 . . 1 . 1 . . . . 1 . . . . . . . . . . . . 3 . . . Zone Layout 1 | . . . . . . . . . . . . . . . . . . . . . . 1 . . . . . Proto ID Catalog 1 | . . . . . . . . . . . . . . . . . . . . . . . . . . . 1 Release Object 2 | . . . . . 2 . . . . . . . . . . . . . . . . . . . . . . Fabricator Hacks 2 | . . . . . . . . . . . 2 . . . . . . . . . . . . . . . . Load Schematic 1 | . . . . . . . . . . . 1 . . . . . . . . . . . . . . . . Build 1 | . . . . . . . . . . . 1 . . . . . . . . . . . . . . . . Repair Station Hacks . | . . . . . . . . . . . . . . . . . . . . . . . . . . . . Recycling Unit Hacks 7 | . . . . . 2 3 . . . . 1 . . . . . . 1 . . . . . . . . . Retrieve Components 7 | . . . . . 2 3 . . . . 1 . . . . . . 1 . . . . . . . . . Scanalyzer 7 | . . . 2 . . 2 . . . . . . . . . . . . . . . . 1 2 . . . Retrieve Study 7 | . . . 2 . . 2 . . . . . . . . . . . . . . . . 1 2 . . . Garrison Access Hacks 5 | . . . . . . . . . . . 1 . . . . . . 1 . . . 1 . 1 1 . . Seal Access 5 | . . . . . . . . . . . 1 . . . . . . 1 . . . 1 . 1 1 . . Unauthorized Hacks 14 | . . . 2 1 3 . . . . . 2 . 2 . . . . 1 1 . . . . 2 . . . Terminals 11 | . . . 2 1 . . . . . . 2 . 2 . . . . 1 1 . . . . 2 . . . Botnet 6 | . . . 1 . . . . . . . . . 2 . . . . . 1 . . . . 2 . . . Skim 5 | . . . 1 1 . . . . . . 2 . . . . . . 1 . . . . . . . . . Fabricators . | . . . . . . . . . . . . . . . . . . . . . . . . . . . . Repair Stations . | . . . . . . . . . . . . . . . . . . . . . . . . . . . . Recycling Units 3 | . . . . . 3 . . . . . . . . . . . . . . . . . . . . . . Reject 1 | . . . . . 1 . . . . . . . . . . . . . . . . . . . . . . Tunnel 2 | . . . . . 2 . . . . . . . . . . . . . . . . . . . . . . Scanalyzers . | . . . . . . . . . . . . . . . . . . . . . . . . . . . . Garrison Access . | . . . . . . . . . . . . . . . . . . . . . . . . . . . . Data Cores Recovered 10 | . . . . 1 . . . . . . 1 . 1 . . . . . . . . . . 7 . . . Used 1 | . . . . 1 . . . . . . . . . . . . . . . . . . . . . . . Hacking Detections 71 | . 1 . 4 7 4 9 . . . . 5 . 7 . 1 . . 4 8 . . 4 3 5 2 4 3 Full Trace Events 16 | . . . 2 4 3 2 . . . . 1 . 1 . 1 . . . . . . . 2 . . . . Feedback Events 3 | . . . 1 . 1 . . . . . . . 1 . . . . . . . . . . . . . . Corruption 3 | . . . 1 . 1 . . . . . . . 1 . . . . . . . . . . . . . . Feedback Blocked . | . . . . . . . . . . . . . . . . . . . . . . . . . . . . Robot Schematics Acquired 5 | . . . . . . . . . 3 . . . . . . . . . . . . . . . . 2 . Robots Built . | . . . . . . . . . . . . . . . . . . . . . . . . . . . . Authchips . | . . . . . . . . . . . . . . . . . . . . . . . . . . . . Time . | . . . . . . . . . . . . . . . . . . . . . . . . . . . . Total Robot Build Rating . | . . . . . . . . . . . . . . . . . . . . . . . . . . . . Part Schematics Acquired 36 | . . . . . . . . . 15 . . . . . . . . . . . . . . . . 7 14 Parts Built . | . . . . . . . . . . . . . . . . . . . . . . . . . . . . Authchips . | . . . . . . . . . . . . . . . . . . . . . . . . . . . . Time 95 | . . . . . . . . . . . 95 . . . . . . . . . . . . . . . . Total Part Build Rating . | . . . . . . . . . . . . . . . . . . . . . . . . . . . . Part Studies Acquired 7 | . . . 2 . . 2 . . . . . . . . . . . . . . . . 1 2 . . . Parts Repaired . | . . . . . . . . . . . . . . . . . . . . . . . . . . . . Time . | . . . . . . . . . . . . . . . . . . . . . . . . . . . . Parts Recycled . | . . . . . . . . . . . . . . . . . . . . . . . . . . . . Recycled Matter . | . . . . . . . . . . . . . . . . . . . . . . . . . . . . Retrieved Matter . | . . . . . . . . . . . . . . . . . . . . . . . . . . . . Retrieved Components 26 | . . . . . 17 6 . . . . 1 . . . . . . 2 . . . . . . . . . Parts Scanalyzed . | . . . . . . . . . . . . . . . . . . . . . . . . . . . . Part Schematics Acquired . | . . . . . . . . . . . . . . . . . . . . . . . . . . . . Parts Damaged . | . . . . . . . . . . . . . . . . . . . . . . . . . . . . Bothacking | -11 -10 -10 -8 -8 -8 -6 -6 -6 -6 -5 -5 -5 -5 -5 -5 -5 -4 -4 -4 -4 -4 -4 -3 -3 -2 -2 -2 ------------ Run | Yrd Mat Sub Mat Sto Rec Fac Low Low Zio Pro Fac Was Fac Upp Upp War Pro Fac Ext Cet Arc Hub Res Qua Res Tes Frg Used RIF Installer . | . . . . . . . . . . . . . . . . . . . . . . . . . . . . Robots Hacked . | . . . . . . . . . . . . . . . . . . . . . . . . . . . . Non-combat . | . . . . . . . . . . . . . . . . . . . . . . . . . . . . Combat . | . . . . . . . . . . . . . . . . . . . . . . . . . . . . Robot Hacks Applied . | . . . . . . . . . . . . . . . . . . . . . . . . . . . . Relay Couplers Released 18 | . . . . . . 1 . . . . 7 . . . . . . 3 . . . . . 1 3 . 3 Machine Destruction 8 | . . . . . . 1 . . . . . . . . . . . 3 . . . . . 1 3 . . Programmers 10 | . . . . . . . . . . . 7 . . . . . . . . . . . . . . . 3 Fabnet Peak Effective % . | . . . . . . . . . . . . . . . . . . . . . . . . . . . . Robots Rewired 29 | . . . . . 10 . 2 . . 1 . . . . . . . . 13 . . . . . . 3 . Allies Hacked . | . . . . . . . . . . . . . . . . . . . . . . . . . . . . Hacks Repelled . | . . . . . . . . . . . . . . . . . . . . . . . . . . . . Allies | -11 -10 -10 -8 -8 -8 -6 -6 -6 -6 -5 -5 -5 -5 -5 -5 -5 -4 -4 -4 -4 -4 -4 -3 -3 -2 -2 -2 -------- Run | Yrd Mat Sub Mat Sto Rec Fac Low Low Zio Pro Fac Was Fac Upp Upp War Pro Fac Ext Cet Arc Hub Res Qua Res Tes Frg Total Allies 75 | . . . . 2 13 4 2 . . 1 4 . 5 1 . . . . 24 . . . . . 3 4 12 Largest Group 18 | . . . . 2 9 11 2 1 . 1 4 . 3 1 1 . . . 18 . . . . . 3 3 3 Highest-Rated Group 842 | . . . . 62 180 285 50 30 . 29 254 . 141 79 79 . . . 842 . . . . . 177 270 267 Highest-Rated Ally 159 | . . . . 31 34 41 30 30 . 29 64 . 47 79 79 . . . 159 . . . . . 59 99 89 Total Orders 2 | . . . . . . 1 . . . . . . . . . . . . . . . . . . . . 1 STAY 1 | . . . . . . 1 . . . . . . . . . . . . . . . . . . . . . RETURN 1 | . . . . . . . . . . . . . . . . . . . . . . . . . . . 1 Ally Attacks 623 | . . . . 17 47 45 4 . . 4 57 . 24 1 7 . . . 170 . . . . . 11 144 92 Total Damage 17380 | . . . . 211 294 1451 113 . . 59 529 . 509 88 292 . . . 4467 . . . . . 267 5610 3490 Kills 75 | . . . . 1 2 9 1 . . . 9 . 1 1 3 . . . 20 . . . . . 1 21 6 Allies Corrupted 3 | . . . . . . 1 . . . . . . 1 . . . . . 1 . . . . . . . . Allies Melted 5 | . . . . . . . . . . . . . 1 . . 1 . . . . . . . . 3 . . X0-1V1 Amusement Gains 855 | . 17 . 5 60 20 105 . . . . 20 40 72 . 40 60 . 76 40 . . 5 90 . 60 48 97 Average Entertainment 53 | . 16 8 8 40 47 44 36 20 . 7 7 22 66 66 73 49 44 50 78 47 19 14 70 55 52 83 97 Good Acts 271 | . . . 28 5 15 20 2 3 . 1 26 1 15 11 4 5 3 . 9 7 1 5 3 15 17 14 61 Bad Acts 240 | . . 2 19 5 14 13 7 3 . 11 12 . 25 7 2 9 8 8 6 5 2 4 7 16 6 10 39 Intel | -11 -10 -10 -8 -8 -8 -6 -6 -6 -6 -5 -5 -5 -5 -5 -5 -5 -4 -4 -4 -4 -4 -4 -3 -3 -2 -2 -2 ------- Run | Yrd Mat Sub Mat Sto Rec Fac Low Low Zio Pro Fac Was Fac Upp Upp War Pro Fac Ext Cet Arc Hub Res Qua Res Tes Frg Active Infowar (turns) 15524 | . 891 453 458 . . . . . . . . . 2 . . 315 434 670 110 . . 632 1655 2765 2537 1904 2698 Optics 13719 | . . . . . . . . . . . . . 2 . . 315 434 670 110 . . 632 1655 2765 2537 1904 2695 Terrain 873 | . 873 . . . . . . . . . . . . . . . . . . . . . . . . . . Seismic 929 | . 18 453 458 . . . . . . . . . . . . . . . . . . . . . . . . Cloaking 1 | . . . . . . . . . . . . . . . . . . . . . . . . . . . 1 Jamming 1 | . . . . . . . . . . . . . . . . . . . . . . . . . . . 1 ECM 2 | . . . . . . . . . . . . . . . . . . . . . . . . . . . 2 Robot Analysis Total . | . . . . . . . . . . . . . . . . . . . . . . . . . . . . Derelict Logs Recovered 14 | . . . . . . . 2 2 . 2 . . . 3 2 . 3 . . . . . . . . . . Drone Launches 6 | . . . . . . . . . . . . . . . . . . . . . . . . . . . 6 Drone Recoveries . | . . . . . . . . . . . . . . . . . . . . . . . . . . . . Exploration | -11 -10 -10 -8 -8 -8 -6 -6 -6 -6 -5 -5 -5 -5 -5 -5 -5 -4 -4 -4 -4 -4 -4 -3 -3 -2 -2 -2 ------------- Run | Yrd Mat Sub Mat Sto Rec Fac Low Low Zio Pro Fac Was Fac Upp Upp War Pro Fac Ext Cet Arc Hub Res Qua Res Tes Frg Turns Passed 40789 | 68 1038 453 1754 1607 2193 2229 1158 879 1267 1001 2861 123 2881 1241 846 1156 434 670 866 1222 245 932 1655 2765 2537 1904 4804 Spaces Moved 25898 | 47 602 289 916 685 1157 2168 720 737 1060 712 2006 107 2337 862 936 802 597 813 755 313 60 342 624 1541 1322 870 2518 Core 21 | 21 . . . . . . . . . . . . . . . . . . . . . . . . . . . Treads 7959 | 26 192 . 528 685 879 548 . . . 40 1864 107 465 71 . . . . . 193 60 134 478 113 742 395 439 Legs 11957 | . . . . . 203 428 720 737 1060 672 . . 263 385 936 776 597 813 755 14 . 208 146 818 244 475 1707 Wheels 2257 | . 410 289 388 . . 152 . . . . 96 . . . . . . . . . . . . 586 336 . . Hover 2510 | . . . . . 72 20 . . . . 15 . 1609 266 . 26 . . . 106 . . . 24 . . 372 Flight 1194 | . . . . . 3 1020 . . . . 31 . . 140 . . . . . . . . . . . . . Fastest Speed 45 | 50 115 100 130 160 66 52 104 115 115 115 45 114 55 57 78 53 53 53 53 120 214 214 140 96 96 97 57 Average Speed 112 | 112 130 119 150 161 142 71 145 116 115 115 109 114 92 98 78 62 53 53 53 210 214 214 188 139 157 147 91 Slowest Speed 266 | 160 240 130 240 240 240 124 146 146 115 115 115 114 114 146 78 78 53 53 53 266 214 214 231 203 241 171 152 Overloaded Moves . | . . . . . . . . . . . . . . . . . . . . . . . . . . . . Propulsion Burnouts . | . . . . . . . . . . . . . . . . . . . . . . . . . . . . Robots Hopped . | . . . . . . . . . . . . . . . . . . . . . . . . . . . . Potential Cave-ins 37 | . . . . . . . . . . . . . . . . . . . . . . . . . 1 . 36 Cave-ins Triggered 2 | . . . . . . . . . . . . . . . . . . . . . . . . . . . 2 Exploration Rate (%) 63 | 4 77 21 58 62 97 39 93 70 85 89 44 96 60 86 93 67 85 26 81 57 75 33 20 96 41 69 41 Regions Visited 27 Branch Regions 18 Pre-discovered Areas 10 | . . 1 . . 2 . 2 . 2 . . . . 1 1 . 1 . . . . . . . . . . Known Exits Taken 13 | . . . . 1 . 1 1 . . 1 . . 1 1 1 . 1 1 . . . 1 . 1 1 1 . Unknown Exits Taken 12 | 1 1 1 1 . 1 . . 1 1 . . . . . . 1 . . 1 1 1 . 1 . . . . Scrap Searched 24 | . . 3 . . . . 5 1 3 4 . . . 3 4 . 1 . . . . . . . . . . Spaces Dug 151 | . . . . . 1 7 . . . . 18 . 21 5 . 2 3 5 6 . . 6 1 7 9 3 57 Terrain Destroyed 3147 | . 110 55 68 190 74 193 3 20 . . 377 . 231 42 18 9 19 16 33 43 12 19 56 112 118 61 1268 Melee . | . . . . . . . . . . . . . . . . . . . . . . . . . . . . Projectile 1257 | . . 4 3 . 1 80 3 20 . . 176 . 131 42 11 9 19 16 33 30 10 19 53 44 115 23 415 AOE 1890 | . 110 51 65 190 73 113 . . . . 201 . 100 . 7 . . . . 13 2 . 3 68 3 38 853 Terrain Rammed . | . . . . . . . . . . . . . . . . . . . . . . . . . . . . Walls Destroyed . | . . . . . . . . . . . . . . . . . . . . . . . . . . . . Machines Disabled . | . . . . . . . . . . . . . . . . . . . . . . . . . . . . Actions | -11 -10 -10 -8 -8 -8 -6 -6 -6 -6 -5 -5 -5 -5 -5 -5 -5 -4 -4 -4 -4 -4 -4 -3 -3 -2 -2 -2 --------- Run | Yrd Mat Sub Mat Sto Rec Fac Low Low Zio Pro Fac Was Fac Upp Upp War Pro Fac Ext Cet Arc Hub Res Qua Res Tes Frg Total 34875 | 60 747 370 1178 1044 1650 2667 802 751 1110 856 2532 107 2868 1173 1022 1366 674 979 1097 839 162 484 1007 2052 1587 1365 4326 Wait 4673 | . 25 47 127 205 273 237 18 5 46 94 286 . 177 214 40 430 31 69 85 466 74 49 227 302 66 318 762 Move 25871 | 46 601 288 915 684 1156 2167 719 736 1059 711 2006 106 2337 861 935 801 596 812 754 312 59 341 623 1540 1321 869 2516 Hop . | . . . . . . . . . . . . . . . . . . . . . . . . . . . . Pick Up 225 | 8 14 5 19 8 7 27 4 . . 3 16 . 18 2 4 7 1 1 2 4 1 12 10 19 10 1 22 Fast Attach 199 | 4 3 1 10 8 5 6 2 1 . 1 10 . 16 3 2 3 . 2 2 4 . 1 10 14 10 21 60 Attach 75 | 2 3 3 4 3 2 5 . . . . 5 . 4 2 2 1 . 4 . 3 1 2 4 5 6 . 14 Detach 31 | . . . 1 . 3 1 1 . . . 1 . 1 . . . . 2 . 2 1 . 3 5 1 . 9 Swap 129 | . 4 2 11 12 1 7 1 . . 5 14 . 12 . 1 4 1 2 1 3 . . 5 4 9 7 23 Drop 334 | . 6 4 21 12 21 35 2 1 5 2 21 . 22 . 4 10 . 2 . 5 5 8 18 28 19 19 64 Fire 2997 | . 90 20 67 106 58 182 31 8 . 37 168 1 275 90 34 109 45 84 141 40 21 68 107 125 145 93 852 Melee 1 | . . . . . . . . . . . . . . . . . . . . . . . . . . . 1 Ram 6 | . . . . . . . . . . . . . 6 . . . . . . . . . . . . . . Kick 8 | . . . . . . . . . . . . . . . . 1 . 1 3 . . 2 . . . 1 . Crush 19 | . 1 . 3 6 . . . . . . 5 . . 1 . . . . . . . 1 . 2 . . . Escape Stasis 11 | . . . . . . . . . . . . . . . . . . . . . . . . 8 . . 3 Rewire 296 | . . . . . 124 . 24 . . 3 . . . . . . . . 109 . . . . . . 36 . Trap . | . . . . . . . . . . . . . . . . . . . . . . . . . . . . Miscellaneous . | . . . . . . . . . . . . . . . . . . . . . . . . . . . . Route ------- -11/Scrapyard -10/Materials (discovered 4 exits: [*Mat x3] / [*Sub]) -10/Subcaves (discovered 2 exits: *Mat / *Rec) -8/Materials (discovered 4 exits: *Fac x3 / *Sto) -8/Storage -8/Recycling -6/Factory (discovered 5 exits: *Fac x3 / *Low x2) -6/Lower Caves -6/Lower Caves -6/Zion -5/Proximity Caves -5/Factory (discovered 6 exits: *Fac x4 / *Upp x2) -5/Waste -5/Factory (discovered 2 exits: *Fac / *Upp) -5/Upper Caves -5/Upper Caves (discovered 2 exits: *Fac / *War) -5/Warlord -4/Proximity Caves -4/Factory (discovered 3 exits: Res / *Ext / *Arm) -4/Extension (discovered 2 exits: *Res / [*Cet]) -4/Cetus (discovered 2 exits: *Res / [*Arc]) -4/Archives -4/Hub_04(d) (discovered 4 exits: *Res x4) -3/Research (discovered 3 exits: *Res / *Qua x2) -3/Quarantine -2/Research (discovered 5 exits: *Acc x3 / *Tes x2) -2/Testing (discovered 3 exits: Acc / *Sec / *Frg) -2/Protoforge (discovered 1 exit: Acc) History --------- Turn | Location | Event 13 | -11/Scrapyard | Discovered new exit (range 14) 69 | -11/Scrapyard | Entered Materials 254 | -10/Materials | Discovered new exit (range 3) 314 | -10/Materials | Build established: Mutant 525 | -10/Materials | Discovered new exit (range 16) 569 | -10/Materials | Derelicts attacked the area 771 | -10/Materials | Discovered new exit (range 16) 1046 | -10/Materials | Discovered new exit (range 8) 1070 | -10/Materials | Prayed at D.C.S.S. Altar Unit 1107 | -10/Materials | Entered Subcaves 1108 | -10/Subcaves | Approached by a straggling Scientist 1114 | -10/Subcaves | Ambushed by Subdwellers from Twisted Machinery 1153 | -10/Subcaves | Ambushed by Subdweller buried in earth 1154 | -10/Subcaves | Core integrity fell below 50% 1172 | -10/Subcaves | Discovered new exit (range 14) 1242 | -10/Subcaves | Disturbed a concealed Subdweller 1242 | -10/Subcaves | Disturbed a concealed Subdweller 1284 | -10/Subcaves | Ambushed by Subdwellers from Twisted Machinery 1526 | -10/Subcaves | Learned location of Zion (-6) 1526 | -10/Subcaves | Met a Zionite searching for "candidates" 1539 | -10/Subcaves | Discovered new exit (range 10) 1549 | -10/Subcaves | A swath of the cavern ceiling suddenly collapsed 1560 | -10/Subcaves | Entered Materials 1560 | -8/Materials | Evolved 4 slots: Propulsion x1, Utility x2, Weapon x1 1586 | -8/Materials | X0-1V1 sent hostile Y-45 Defender (x1) 1653 | -8/Materials | X0-1V1 announced a LAN party 1812 | -8/Materials | Energy capacity permanently improved by X0-1V1 (+200; -100 max core) 2003 | -8/Materials | Identified exit to Factory 2003 | -8/Materials | X0-1V1 revealed exit location to -7/Factory 2041 | -8/Materials | Discovered new exit (range 8) 2191 | -8/Materials | Discovered exit to Factory (range 9) 2256 | -8/Materials | Build established: Tank 2353 | -8/Materials | X0-1V1 activates XOMVISION 2984 | -8/Materials | X0-1V1 made a cryptic comment about sterilization and BL-4Z3 2991 | -8/Materials | X0-1V1 vaporized surrounding terrain (radius 15) 3026 | -8/Materials | X0-1V1 sent hostile B-36 Bruiser (x2) 3040 | -8/Materials | X0-1V1 sent you into danger 3051 | -8/Materials | X0-1V1 revealed exit location to -7/Factory 3072 | -8/Materials | X0-1V1 activates XOMVISION 3082 | -8/Materials | X0-1V1 foreshadows a heat wave 3088 | -8/Materials | X0-1V1 sent you to a vault 3138 | -8/Materials | X0-1V1 put everyone to sleep 3156 | -8/Materials | Sterilization system engaged 3156 | -8/Materials | Non-combat units ordered to evacuate 3192 | -8/Materials | X0-1V1 redirected Transport squads to designated parking area 3247 | -8/Materials | Ambient heat levels rising (+10) 3256 | -8/Materials | Combat units ordered to evacuate 3314 | -8/Materials | Entered Storage 3355 | -8/Storage | Identified exit to Recycling 3383 | -8/Storage | Sight range permanently improved by X0-1V1 (+1; -150 max core) 3511 | -8/Storage | System corruption reached 10% 3937 | -8/Storage | Used back door to open Recycling access 3985 | -8/Storage | Door terminal overloaded 3994 | -8/Storage | Found Prototype Launcher 3994 | -8/Storage | Identified Gui. Missile Launcher 4080 | -8/Storage | Met a pair of Derelict thieves 4183 | -8/Storage | Destroyed 10 combat bots 4338 | -8/Storage | X0-1V1 activates XOMVISION 4376 | -8/Storage | Destroyed 8 combat bots 4514 | -8/Storage | First assault squad dispatched 4601 | -8/Storage | Destroyed 8 combat bots 4724 | -8/Storage | X0-1V1 vaporized surrounding terrain (radius 20) 4809 | -8/Storage | X0-1V1 vaporized surrounding terrain (radius 20) 4820 | -8/Storage | X0-1V1 caused items to flee you 4921 | -8/Storage | Entered Recycling 5249 | -8/Recycling | X0-1V1 sent allied S-10 Pest (x3) 5286 | -8/Recycling | X0-1V1 put everyone to sleep 5596 | -8/Recycling | Discovered new exit (range 17) 5711 | -8/Recycling | X0-1V1 activates XOMVISION 5995 | -8/Recycling | Core integrity permanently improved by X0-1V1 (+300) 6025 | -8/Recycling | Found Prototype Device 6025 | -8/Recycling | Identified Scrap Engine 6030 | -8/Recycling | Entered Scraplab 6289 | -8/Recycling | Build established: Mutant 6390 | -8/Recycling | X0-1V1 vaporized surrounding terrain (radius 22) 6768 | -8/Recycling | X0-1V1 added 0b10 threat records associated with you (considerable) 6940 | -8/Recycling | X0-1V1 activates XOMVISION 7045 | -8/Recycling | Build established: Commander-Construct 7053 | -8/Recycling | X0-1V1 mutated your Weapon slot to Utility slot 7114 | -8/Recycling | Entered Factory 7114 | -6/Factory | Accompanied by 9 allies 7114 | -6/Factory | Evolved 4 slots: Power x1, Propulsion x1, Utility x1, Weapon x1 7252 | -6/Factory | X0-1V1 enhanced Transport squad support 7284 | -6/Factory | Identified exit to Factory 7284 | -6/Factory | X0-1V1 revealed exit location to -5/Factory 7299 | -6/Factory | X0-1V1 sent you to a vault 7409 | -6/Factory | Discovered exit to Factory (range 16) 7585 | -6/Factory | Discovered new exit (range 12) 7674 | -6/Factory | X0-1V1 caused items to flee you 7760 | -6/Factory | Items stopped fleeing you 7901 | -6/Factory | X0-1V1 revealed exit location to -5/Factory 7913 | -6/Factory | X0-1V1 activates XOMVISION 7989 | -6/Factory | Build established: Construct 8138 | -6/Factory | Destroyed 13 combat bots 8164 | -6/Factory | First assault squad dispatched 8363 | -6/Factory | X0-1V1 redirected Transport squads to designated parking area 8366 | -6/Factory | Identified exit to Lower Caves 8544 | -6/Factory | Allied Derelicts emerged from ambush trap array 8664 | -6/Factory | Spotted B-75 Beast 8675 | -6/Factory | Destroyed B-75 Beast 8696 | -6/Factory | Destroyed 7 combat bots 9072 | -6/Factory | Destroyed 10 combat bots 9072 | -6/Factory | High security lockdown imminent 9152 | -6/Factory | High security lockdown engaged 9192 | -6/Factory | Imp. Heavy Armor Plating reconfigured into Item Mimic 9343 | -6/Factory | Entered Lower Caves 9414 | -6/Lower Caves | Attracted the attention of an 0b10 outpost 9494 | -6/Lower Caves | Destroyed 9 combat bots 9702 | -6/Lower Caves | Learned location of Extension (-4) 10068 | -6/Lower Caves | Identified exit to Lower Caves 10068 | -6/Lower Caves | X0-1V1 revealed exit location to -6/Lower Caves 10326 | -6/Lower Caves | X0-1V1 sent hostile P-60 Hacker (x2) 10335 | -6/Lower Caves | P-60 Hacker assimilated allied Gladiator 5a 10400 | -6/Lower Caves | X0-1V1 sent hostile X-62 Marksman (x2) 10470 | -6/Lower Caves | X0-1V1 mutated your Utility slot to Power slot 10501 | -6/Lower Caves | Entered another Lower Caves area 10501 | -6/Lower Caves | Accompanied by 1 ally 10815 | -6/Lower Caves | X0-1V1 sent hostile X-62 Marksman (x2) 10903 | -6/Lower Caves | Learned location of 1 exit from Factory 10914 | -6/Lower Caves | Discovered new exit (range 10) 11280 | -6/Lower Caves | Core integrity restored by X0-1V1 (+189) 11380 | -6/Lower Caves | Entered Zion 11446 | -6/Zion | Discovered new exit (range 11) 11531 | -6/Zion | System corruption cleaned by Quarantine Array 11797 | -6/Zion | Met Imprinter 12647 | -6/Zion | Entered Proximity Caves 12650 | -5/Proximity Caves | Spotter reported a threat 12746 | -5/Proximity Caves | X0-1V1 sent you into danger 12748 | -5/Proximity Caves | Attracted the attention of an 0b10 outpost 12817 | -5/Proximity Caves | Learned Factory terminal intel 12981 | -5/Proximity Caves | Attracted the attention of an 0b10 checkpoint 13023 | -5/Proximity Caves | Destroyed 8 combat bots 13210 | -5/Proximity Caves | Discovered exit to Factory (range 6) 13218 | -5/Proximity Caves | X0-1V1 activates XOMVISION 13235 | -5/Proximity Caves | X0-1V1 vaporized surrounding terrain (radius 16) 13352 | -5/Proximity Caves | X0-1V1 vaporized surrounding terrain (radius 16) 13372 | -5/Proximity Caves | Spotted B-75 Beast 13378 | -5/Proximity Caves | Destroyed B-75 Beast 13406 | -5/Proximity Caves | Learned Factory non-interactive machine intel 13459 | -5/Proximity Caves | X0-1V1 caused items to flee you 13541 | -5/Proximity Caves | X0-1V1 sent hostile Fireman (x2) 13608 | -5/Proximity Caves | Items stopped fleeing you 13640 | -5/Proximity Caves | System corruption reached 10% 13648 | -5/Proximity Caves | Entered Factory 13648 | -5/Factory | Evolved 2 slots: Utility x2 13649 | -5/Factory | Identified exit to Upper Caves 13650 | -5/Factory | Loaded intel: 271 non-interactive machine locations 13651 | -5/Factory | Loaded intel: 25 terminal locations 13865 | -5/Factory | Discovered new exit (range 6) 13877 | -5/Factory | X0-1V1 announced a LAN party 13928 | -5/Factory | Identified exit to Factory 14435 | -5/Factory | X0-1V1 sent allied Ranger (x4) 14588 | -5/Factory | X0-1V1 caused items to flee you 14617 | -5/Factory | Lost 4 allies 14749 | -5/Factory | Items stopped fleeing you 14823 | -5/Factory | X0-1V1 sent hostile H-66 Slayer (x2) 14960 | -5/Factory | X0-1V1 sent you to a vault 14964 | -5/Factory | Found Prototype Processor 14964 | -5/Factory | Identified Exp. Terrain Scan Processor 15148 | -5/Factory | First assault squad dispatched 15204 | -5/Factory | Spotted B-75 Beast 15218 | -5/Factory | Destroyed B-75 Beast 15291 | -5/Factory | X0-1V1 activates XOMVISION 15419 | -5/Factory | Discovered exit to Factory (range 17) 15553 | -5/Factory | X0-1V1 revealed exit location to -4/Factory 15677 | -5/Factory | Found Prototype Processor 15677 | -5/Factory | Identified Exp. Targeting Computer 15683 | -5/Factory | Found Exp. Targeting Computer 16033 | -5/Factory | Allied Derelicts emerged from ambush trap array 16134 | -5/Factory | Lost 3 allies 16258 | -5/Factory | X0-1V1 revealed exit location to -4/Factory 16260 | -5/Factory | X0-1V1 put everyone to sleep 16276 | -5/Factory | X0-1V1 vaporized surrounding terrain (radius 17) 16509 | -5/Factory | Manually triggered Chute Trap 16509 | -5/Factory | Sucked down chute 16509 | -5/Factory | Entered Waste 16524 | -5/Waste | EMP discharged 16524 | -5/Waste | System corruption reached 10% 16524 | -5/Waste | Spotted C-40 Crusher 16530 | -5/Waste | Spotted C-40 Crusher 16543 | -5/Waste | Spotted C-40 Crusher 16556 | -5/Waste | Spotted C-40 Crusher 16567 | -5/Waste | Spotted C-40 Crusher 16572 | -5/Waste | Crushed by Compactor (1 part destroyed, 1 dropped) 16577 | -5/Waste | Crushed by Compactor (1 part destroyed) 16583 | -5/Waste | Spotted C-40 Crusher 16622 | -5/Waste | Discovered new exit (range 10) 16624 | -5/Waste | EMP discharged 16632 | -5/Waste | Entered Factory 16754 | -5/Factory | X0-1V1 mutated your Utility slot to Propulsion slot 16932 | -5/Factory | First assault squad dispatched 17001 | -5/Factory | X0-1V1 redirected Transport squads to designated parking area 17036 | -5/Factory | System corruption reached 30% 17062 | -5/Factory | Destroyed 8 combat bots 17081 | -5/Factory | X0-1V1 added 0b10 threat records associated with you (major) 17091 | -5/Factory | Discovered exit to Factory (range 3) 17615 | -5/Factory | X0-1V1 enhanced Transport squad support 17674 | -5/Factory | Cargo convoy interrupted 17722 | -5/Factory | X0-1V1 sent allied G-50 Soldier (x2) 17793 | -5/Factory | Found Prototype Processor 17793 | -5/Factory | Identified Exp. Core Analyzer 17817 | -5/Factory | Found Prototype Processor 17817 | -5/Factory | Identified Spectral Analyzer 17823 | -5/Factory | Found Exp. Core Analyzer 17853 | -5/Factory | Found Spectral Analyzer 17910 | -5/Factory | Found PL-3XN's Ring of Power 17921 | -5/Factory | Weapon slot count temporarily expanded by X0-1V1 (+2) 18296 | -5/Factory | X0-1V1 sent you to a vault 18323 | -5/Factory | Weapon slot count reverted to normal (-2) 18573 | -5/Factory | Destroyed 8 combat bots 18597 | -5/Factory | X0-1V1 added 0b10 threat records associated with you (minor) 18697 | -5/Factory | X0-1V1 added 0b10 threat records associated with you (minor) 18820 | -5/Factory | Core integrity restored by X0-1V1 (+189) 18917 | -5/Factory | Spotted B-75 Beast 18929 | -5/Factory | Destroyed B-75 Beast 18991 | -5/Factory | Found Imp. Powered Armor 19084 | -5/Factory | Discovered exit to Factory (range 16) 19094 | -5/Factory | X0-1V1 revealed exit location to -5/Upper Caves 19103 | -5/Factory | X0-1V1 tapped a No Entrance sign 19176 | -5/Factory | X0-1V1 sent hostile H-66 Slayer (x2) 19378 | -5/Factory | High security lockdown imminent 19408 | -5/Factory | X0-1V1 upgraded hostiles (x2) 19419 | -5/Factory | X0-1V1 announced a LAN party 19458 | -5/Factory | High security lockdown engaged 19513 | -5/Factory | Entered Upper Caves 19721 | -5/Upper Caves | Learned Factory emergency access door positions 19750 | -5/Upper Caves | Encountered a Warlord checkpoint 19845 | -5/Upper Caves | X0-1V1 sent hostile Savage (x1) 19974 | -5/Upper Caves | X0-1V1 activates XOMVISION 20024 | -5/Upper Caves | Learned location of 1 exit from Factory 20052 | -5/Upper Caves | Identified exit to Upper Caves 20101 | -5/Upper Caves | X0-1V1 downgraded hostiles (x3) 20129 | -5/Upper Caves | Attracted the attention of an 0b10 base 20179 | -5/Upper Caves | Destroyed 9 combat bots 20209 | -5/Upper Caves | X0-1V1 upgraded hostiles (x2) 20230 | -5/Upper Caves | Learned location of 2 exits from Lower Caves 20230 | -5/Upper Caves | Learned Armory terminal intel 20236 | -5/Upper Caves | Core integrity restored by X0-1V1 (+157) 20561 | -5/Upper Caves | X0-1V1 activates XOMVISION 20574 | -5/Upper Caves | Attracted the attention of an 0b10 checkpoint 20609 | -5/Upper Caves | X0-1V1 sent allied Chaos Knight 2.0 (x1) 20754 | -5/Upper Caves | Entered another Upper Caves area 20754 | -5/Upper Caves | Accompanied by 1 ally 20811 | -5/Upper Caves | Core integrity restored by X0-1V1 (+178) 20877 | -5/Upper Caves | Attracted the attention of an 0b10 base 20931 | -5/Upper Caves | Destroyed 10 combat bots 20939 | -5/Upper Caves | Identified exit to Warlord 20939 | -5/Upper Caves | X0-1V1 revealed exit location to -5/Warlord 20958 | -5/Upper Caves | Found DCF Scrap (11 items) 21095 | -5/Upper Caves | Learned 4 Factory zone layouts 21462 | -5/Upper Caves | Encountered a Warlord checkpoint 21499 | -5/Upper Caves | X0-1V1 sent hostile X-67 Chaingunner (x2) 21584 | -5/Upper Caves | Learned Factory emergency access door positions 21600 | -5/Upper Caves | Entered Warlord 21627 | -5/Warlord | System corruption cleaned by Quarantine Array 21664 | -5/Warlord | Received a Watcher feed algorithm from an ecstatic Tinkerer 21665 | -5/Warlord | Ran a Watcher feed algorithm 21773 | -5/Warlord | Found Prototype Device 21773 | -5/Warlord | Identified System Purifier 21783 | -5/Warlord | Found Spectral Analyzer 21876 | -5/Warlord | Visited the Vortex Lab 21884 | -5/Warlord | Found Prototype Energy Cannon 21886 | -5/Warlord | Found Prototype Energy Cannon 21888 | -5/Warlord | Found Prototype Energy Cannon 21897 | -5/Warlord | Warlord's base attacked by MAIN.C 21899 | -5/Warlord | X0-1V1 activates XOMVISION 22151 | -5/Warlord | Spotted B-86 Titan 22167 | -5/Warlord | Destroyed B-86 Titan 22211 | -5/Warlord | Lost 3 allies 22247 | -5/Warlord | Warlord forces counterattacked 22305 | -5/Warlord | Lost 5 allies 22351 | -5/Warlord | Lost 3 allies 22363 | -5/Warlord | Destroyed 9 combat bots 22387 | -5/Warlord | Spotted Executioner 22411 | -5/Warlord | Destroyed Executioner 22417 | -5/Warlord | Spotted B-86 Titan 22417 | -5/Warlord | Spotted Striker 22439 | -5/Warlord | X0-1V1 upgraded hostiles (x3) 22440 | -5/Warlord | Spotted Executioner 22440 | -5/Warlord | Spotted B-90 Cyclops 22443 | -5/Warlord | Destroyed 7 combat bots 22453 | -5/Warlord | Destroyed Striker 22456 | -5/Warlord | Destroyed B-90 Cyclops 22475 | -5/Warlord | X0-1V1 caused items to flee you 22517 | -5/Warlord | Lost 21 allies 22534 | -5/Warlord | Spotted Executioner 22572 | -5/Warlord | Warlord base infiltrated, sounded retreat 22590 | -5/Warlord | Items stopped fleeing you 22607 | -5/Warlord | Found Prototype Device 22619 | -5/Warlord | Spotted Executioner 22623 | -5/Warlord | Spotted Executioner 22633 | -5/Warlord | Discovered new exit (range 22) 22644 | -5/Warlord | Met Warlord 22701 | -5/Warlord | Spotted B-86 Titan 22708 | -5/Warlord | Destroyed B-86 Titan 22746 | -5/Warlord | Lost 13 allies 22756 | -5/Warlord | Entered Proximity Caves 22758 | -4/Proximity Caves | X0-1V1 sent hostile Thug (x2) 22792 | -4/Proximity Caves | Learned location of Quarantine (-3) 22834 | -4/Proximity Caves | X0-1V1 vaporized surrounding terrain (radius 24) 22838 | -4/Proximity Caves | Spotter reported a threat 22841 | -4/Proximity Caves | X0-1V1 sent you into danger 22896 | -4/Proximity Caves | Spotter reported a threat 22919 | -4/Proximity Caves | Learned Research emergency access door positions 22976 | -4/Proximity Caves | Spotter reported a threat 23010 | -4/Proximity Caves | X0-1V1 sent you into danger 23190 | -4/Proximity Caves | Entered Factory 23190 | -4/Factory | Evolved 2 slots: Utility x2 23190 | -4/Factory | Identified Adv. Kinecellerator 23191 | -4/Factory | Identified exit to Extension 23192 | -4/Factory | Identified exit to Research 23193 | -4/Factory | Identified exit to Armory 23217 | -4/Factory | X0-1V1 added 0b10 threat records associated with you (major) 23440 | -4/Factory | Search patrols dispatched 23464 | -4/Factory | Destroyed 11 combat bots 23690 | -4/Factory | First assault squad dispatched 23691 | -4/Factory | X0-1V1 redirected Transport squads to designated parking area 23719 | -4/Factory | Destroyed 11 combat bots 23745 | -4/Factory | X0-1V1 enhanced Transport squad support 23809 | -4/Factory | X0-1V1 added 0b10 threat records associated with you (considerable) 23831 | -4/Factory | High security lockdown imminent 23860 | -4/Factory | Entered Extension 23879 | -4/Extension | Rescued a captive Derelict 23881 | -4/Extension | Rescued a captive Derelict 23904 | -4/Extension | Rescued A7 23949 | -4/Extension | X0-1V1 added 0b10 threat records associated with you (considerable) 23998 | -4/Extension | Door terminal overloaded 23999 | -4/Extension | Rescued a captive Derelict 24024 | -4/Extension | X0-1V1 announced a LAN party 24036 | -4/Extension | Rescued a captive Derelict 24108 | -4/Extension | X0-1V1 tapped a No Entrance sign 24235 | -4/Extension | Spotted B-86 Titan 24237 | -4/Extension | Destroyed B-86 Titan 24292 | -4/Extension | Spotted B-86 Titan 24297 | -4/Extension | Destroyed B-86 Titan 24342 | -4/Extension | Rescued a captive Derelict 24348 | -4/Extension | Rescued a captive Derelict 24350 | -4/Extension | High security lockdown imminent 24368 | -4/Extension | Rescued a captive Derelict 24369 | -4/Extension | Rescued a captive Derelict 24430 | -4/Extension | High security lockdown engaged 24519 | -4/Extension | P-70 Sage assimilated allied AM-JF0(l) 24609 | -4/Extension | Rescued a captive Derelict 24611 | -4/Extension | Rescued a captive Derelict 24625 | -4/Extension | Build established: Commander-Construct 24651 | -4/Extension | Discovered exit to Research (range 10) 24651 | -4/Extension | Discovered new exit (range 6) 24667 | -4/Extension | Lost 10 allies 24669 | -4/Extension | Destroyed 44 combat bots 24671 | -4/Extension | X0-1V1 destroyed Energy Cycler 24671 | -4/Extension | Energy Cycler disabled 24671 | -4/Extension | Rescued a captive Derelict 24726 | -4/Extension | Entered Cetus 24752 | -4/Cetus | Lost 6 allies 24856 | -4/Cetus | System corruption reached 10% 24876 | -4/Cetus | Spotted Cetus Guard 24876 | -4/Cetus | Spotted Cetus Guard 24880 | -4/Cetus | Destroyed Cetus Guard 24880 | -4/Cetus | Spotted Cetus Guard 24884 | -4/Cetus | Destroyed Cetus Guard 24884 | -4/Cetus | Spotted Cetus Guard 24885 | -4/Cetus | Destroyed Cetus Guard 24886 | -4/Cetus | Destroyed Cetus Guard 24941 | -4/Cetus | Build established: Construct 25000 | -4/Cetus | Discovered new exit (range 16) 25032 | -4/Cetus | Spotted Cetus Guard 25032 | -4/Cetus | Spotted Cetus Guard 25036 | -4/Cetus | Destroyed Cetus Guard 25036 | -4/Cetus | Spotted Cetus Guard 25036 | -4/Cetus | Destroyed Cetus Guard 25037 | -4/Cetus | Spotted Cetus Guard 25042 | -4/Cetus | Destroyed Cetus Guard 25045 | -4/Cetus | Destroyed Cetus Guard 25067 | -4/Cetus | Discovered exit to Research (range 16) 25097 | -4/Cetus | Met Revision 17 25244 | -4/Cetus | X0-1V1 caused items to flee you 25441 | -4/Cetus | Items stopped fleeing you 25476 | -4/Cetus | Security sweep announced 25556 | -4/Cetus | X0-1V1 upgraded hostiles (x3) 25585 | -4/Cetus | Weapon slot count temporarily expanded by X0-1V1 (+4) 25585 | -4/Cetus | Found Gamma Bomb Array 25766 | -4/Cetus | Destroyed 7 combat bots 25948 | -4/Cetus | Entered Archives 26000 | -4/Archives | Identified Vortex Cannon (x3) 26094 | -4/Archives | Weapon slot count reverted to normal (-4) 26096 | -4/Archives | Discovered new exit (range 17) 26191 | -4/Archives | X0-1V1 sent hostile H-77 Assassin (x3) 26193 | -4/Archives | Entered Hub_04(d) 26218 | -4/Hub_04(d) | X0-1V1 redirected Transport squads to designated parking area 26337 | -4/Hub_04(d) | Garrison activated, responded to threat 26639 | -4/Hub_04(d) | Disrupted transfer network 26745 | -4/Hub_04(d) | Found Prototype Launcher 26745 | -4/Hub_04(d) | Identified Tesla Bomb Launcher 26799 | -4/Hub_04(d) | X0-1V1 upgraded hostiles (x1) 26875 | -4/Hub_04(d) | Core integrity restored by X0-1V1 (+300) 26932 | -4/Hub_04(d) | X0-1V1 upgraded hostiles (x2) 27125 | -4/Hub_04(d) | Entered Research 27125 | -3/Research | Evolved 2 slots: Utility x1, Weapon x1 27325 | -3/Research | Revision forces began assault on 0b10 27365 | -3/Research | Met up with Revision 17++ 27622 | -3/Research | Found Prototype Device 27622 | -3/Research | Identified Exp. EM Disruption Field 27825 | -3/Research | Research terminal network offline 27975 | -3/Research | Discovered new exit (range 10) 28183 | -3/Research | X0-1V1 enhanced Transport squad support 28350 | -3/Research | Spotted Striker 28356 | -3/Research | Spotted Executioner 28368 | -3/Research | Destroyed Striker 28413 | -3/Research | Destroyed Executioner 28415 | -3/Research | Lost 4 allies 28482 | -3/Research | Discovered new exit (range 9) 28506 | -3/Research | Spotted Striker 28510 | -3/Research | Spotted Striker 28523 | -3/Research | Destroyed Striker 28538 | -3/Research | Destroyed Striker 28567 | -3/Research | Lost 4 parts (2u2w) 28575 | -3/Research | Discovered new exit (range 9) 28765 | -3/Research | X0-1V1 announced a LAN party 28780 | -3/Research | Entered Quarantine 28931 | -3/Quarantine | X0-1V1 caused items to flee you 29170 | -3/Quarantine | Items stopped fleeing you 29180 | -3/Quarantine | Identified exit to Research 29180 | -3/Quarantine | X0-1V1 revealed exit location to -2/Research 29229 | -3/Quarantine | Build established: Scavenger-Construct 29469 | -3/Quarantine | Found Alien Artifact 29510 | -3/Quarantine | Found Alien Reactor 29577 | -3/Quarantine | X0-1V1 added 0b10 threat records associated with you (minor) 29580 | -3/Quarantine | Found Alien Artifact 29616 | -3/Quarantine | Found Alien Launcher 29714 | -3/Quarantine | Central database locked down 29729 | -3/Quarantine | Spotted Alpha 7 29757 | -3/Quarantine | Destroyed Alpha 7 29780 | -3/Quarantine | First assault squad dispatched 29885 | -3/Quarantine | Found Powered Armor 29918 | -3/Quarantine | Cryocooling Duct disabled 29933 | -3/Quarantine | Ambient heat levels rising (+20) 29933 | -3/Quarantine | Non-combat units ordered to evacuate 30121 | -3/Quarantine | Destroyed 9 combat bots 30295 | -3/Quarantine | Core integrity restored by X0-1V1 (+256) 30306 | -3/Quarantine | X0-1V1 activates XOMVISION 30546 | -3/Quarantine | Found Alien Artifact 30546 | -3/Quarantine | Identified Phase Redirector 30547 | -3/Quarantine | X0-1V1 announced a LAN party 30832 | -3/Quarantine | Found Alien Artifact 31097 | -3/Quarantine | System corruption reached 10% 31143 | -3/Quarantine | X0-1V1 added 0b10 threat records associated with you (considerable) 31545 | -3/Quarantine | Entered Research 31545 | -2/Research | Warlord forces began assault on 0b10 31545 | -2/Research | Evolved 2 slots: Utility x2 31655 | -2/Research | Research machine network offline 31699 | -2/Research | X0-1V1 sent you to a vault 31900 | -2/Research | Borebot progress halted 32026 | -2/Research | X0-1V1 sent you into danger 32030 | -2/Research | Spotted B-90 Cyclops 32064 | -2/Research | Discovered new exit (range 16) 32096 | -2/Research | Destroyed B-90 Cyclops 32143 | -2/Research | Spotted Striker 32428 | -2/Research | Spotted Striker 32474 | -2/Research | Found Prototype Protection 32474 | -2/Research | Identified Centrium Heavy Armor Plating 32478 | -2/Research | Found Centrium Heavy Armor Plating 32530 | -2/Research | Found Adv. Kinecellerator 32731 | -2/Research | Discovered new exit (range 8) 32735 | -2/Research | Spotted Striker 32741 | -2/Research | Spotted Executioner 32742 | -2/Research | Spotted Executioner 32755 | -2/Research | Destroyed Executioner 32763 | -2/Research | Destroyed Executioner 32769 | -2/Research | Found Prototype Processor 32769 | -2/Research | Identified Exp. Targeting Computer 32774 | -2/Research | Found Exp. Core Analyzer 32776 | -2/Research | Lost 3 allies 32833 | -2/Research | Discovered new exit (range 22) 32845 | -2/Research | Spotted Striker 32847 | -2/Research | Spotted Striker 32867 | -2/Research | Destroyed Striker 32887 | -2/Research | Destroyed Striker 33026 | -2/Research | Spotted Striker 33042 | -2/Research | Destroyed Striker 33047 | -2/Research | Given Cave Seal Controls access code 33061 | -2/Research | Spotted Executioner 33063 | -2/Research | Spotted Striker 33096 | -2/Research | Spotted Executioner 33104 | -2/Research | Destroyed Executioner 33122 | -2/Research | Spotted Executioner 33133 | -2/Research | Destroyed Executioner 33244 | -2/Research | Discovered new exit (range 3) 33295 | -2/Research | Spotted Striker 33323 | -2/Research | Identified exit to Access 33420 | -2/Research | Found Exp. Core Analyzer 33460 | -2/Research | Found Exp. Targeting Computer 33639 | -2/Research | Identified exit to Testing 33639 | -2/Research | X0-1V1 revealed exit location to -2/Testing 33665 | -2/Research | Met DD-05H 33721 | -2/Research | Met PL-HR7 33748 | -2/Research | X0-1V1 vaporized surrounding terrain (radius 19) 33909 | -2/Research | Spotted Striker 33909 | -2/Research | Spotted Striker 33911 | -2/Research | Destroyed Striker 33916 | -2/Research | Destroyed Striker 33918 | -2/Research | Spotted Executioner 33919 | -2/Research | Spotted Executioner 33926 | -2/Research | Destroyed Executioner 33929 | -2/Research | Destroyed Executioner 33932 | -2/Research | Borebot progress halted 33976 | -2/Research | Destroyed 10 combat bots 34033 | -2/Research | Spotted Striker 34049 | -2/Research | Spotted Striker 34082 | -2/Research | Entered Testing 34105 | -2/Testing | X0-1V1 sent hostile H-77 Assassin (x2) 34119 | -2/Testing | Lost 8 allies 34293 | -2/Testing | System corruption reached 10% 34328 | -2/Testing | X0-1V1 enhanced Transport squad support 34332 | -2/Testing | First assault squad dispatched 34416 | -2/Testing | X0-1V1 redirected Transport squads to designated parking area 34449 | -2/Testing | Found Prototype Energy Gun 34449 | -2/Testing | Identified Warp Gun 34721 | -2/Testing | Watched by a mysterious "MATRIX" hacker 34767 | -2/Testing | Spotted Alpha 7 34770 | -2/Testing | X0-1V1 sent allied Striker (x1) 34782 | -2/Testing | Destroyed Alpha 7 34784 | -2/Testing | Spotted PY-5HLVGMPJ6O 34791 | -2/Testing | Destroyed PY-5HLVGMPJ6O 34843 | -2/Testing | Found Prototype Processor 34843 | -2/Testing | Identified Exp. Target Analyzer 34858 | -2/Testing | Found Centrium Heavy Armor Plating 34946 | -2/Testing | X0-1V1 activates XOMVISION 35069 | -2/Testing | Rewired B5-2MY(L) 35083 | -2/Testing | Rewired QH-9BJ(L) 35095 | -2/Testing | Rewired HN-S9F(L) 35225 | -2/Testing | Found Prototype Energy Gun 35225 | -2/Testing | Identified Hyp. EM Gauss Rifle 35314 | -2/Testing | Spotted Striker 35314 | -2/Testing | Spotted Striker 35317 | -2/Testing | Destroyed Striker 35319 | -2/Testing | Spotted Alpha 7 35326 | -2/Testing | Scanned by Researcher 35329 | -2/Testing | Allies destroyed Striker 35331 | -2/Testing | Allies destroyed Alpha 7 35351 | -2/Testing | Found Prototype Ballistic Gun 35351 | -2/Testing | Identified Multirail 35361 | -2/Testing | Identified exit to Section 7 35361 | -2/Testing | X0-1V1 revealed exit location to -2/Section 7 35378 | -2/Testing | X0-1V1 announced a LAN party 35509 | -2/Testing | Identified exit to Protoforge 35509 | -2/Testing | X0-1V1 revealed exit location to -2/Protoforge 35535 | -2/Testing | X0-1V1 sent hostile S-43 Plague (x4) 35609 | -2/Testing | High security lockdown imminent 35612 | -2/Testing | X0-1V1 revealed exit location to -1/Access 35627 | -2/Testing | X0-1V1 caused items to flee you 35689 | -2/Testing | High security lockdown engaged 35754 | -2/Testing | Spotted Fortress 35784 | -2/Testing | Destroyed Fortress 35888 | -2/Testing | Spotted Investigator 35891 | -2/Testing | Spotted Striker 35904 | -2/Testing | Items stopped fleeing you 35986 | -2/Testing | Entered Protoforge 36007 | -2/Protoforge | X0-1V1 sent someone to keep an eye on you 36075 | -2/Protoforge | Superfortress began startup sequence 36182 | -2/Protoforge | Spotted Hotshot 36183 | -2/Protoforge | Spotted Hotshot 36185 | -2/Protoforge | Spotted Hotshot 36185 | -2/Protoforge | Spotted Hotshot 36188 | -2/Protoforge | X0-1V1 activates XOMVISION 36209 | -2/Protoforge | Destroyed Hotshot 36215 | -2/Protoforge | Destroyed Hotshot 36236 | -2/Protoforge | First assault squad dispatched 36245 | -2/Protoforge | Destroyed Hotshot 36257 | -2/Protoforge | Destroyed Hotshot 36437 | -2/Protoforge | Spotted Hotshot 36448 | -2/Protoforge | Spotted Hotshot 36448 | -2/Protoforge | Spotted Hotshot 36448 | -2/Protoforge | Spotted Hotshot 36463 | -2/Protoforge | X0-1V1 sent allied Thug (x2) 36470 | -2/Protoforge | Destroyed Hotshot 36474 | -2/Protoforge | Destroyed Hotshot 36477 | -2/Protoforge | Destroyed Hotshot 36479 | -2/Protoforge | Destroyed Hotshot 36505 | -2/Protoforge | Destroyed 17 combat bots 36562 | -2/Protoforge | X0-1V1 turns hostiles against one another 36577 | -2/Protoforge | Destroyed 7 combat bots 36591 | -2/Protoforge | Spotted Overlord 36605 | -2/Protoforge | Destroyed Overlord 36621 | -2/Protoforge | Found Centrium Heavy Armor Plating 36625 | -2/Protoforge | Found Prototype Device 36625 | -2/Protoforge | Identified Exp. EM Shield 36631 | -2/Protoforge | Found Prototype Device 36631 | -2/Protoforge | Identified Exp. Weapon Cycler 36635 | -2/Protoforge | Found Prototype Device 36635 | -2/Protoforge | Identified Exp. Transmission Jammer 36702 | -2/Protoforge | Spotted Hotshot 36731 | -2/Protoforge | Spotted Hotshot 36732 | -2/Protoforge | Spotted Hotshot 36732 | -2/Protoforge | Spotted Hotshot 36732 | -2/Protoforge | Spotted Hotshot 36738 | -2/Protoforge | Spotted Hotshot 36741 | -2/Protoforge | Destroyed Hotshot 36741 | -2/Protoforge | Destroyed Hotshot 36747 | -2/Protoforge | Destroyed Hotshot 36751 | -2/Protoforge | Destroyed Hotshot 36751 | -2/Protoforge | Destroyed Hotshot 36791 | -2/Protoforge | Found Prototype Device 36791 | -2/Protoforge | Identified Exp. Trap Extractor 36850 | -2/Protoforge | Spotted Immortal 36853 | -2/Protoforge | Spotted Immortal 36853 | -2/Protoforge | Spotted Immortal 36860 | -2/Protoforge | Destroyed Immortal 36865 | -2/Protoforge | Destroyed Immortal 36870 | -2/Protoforge | Destroyed Immortal 36926 | -2/Protoforge | Destroyed 11 combat bots 36954 | -2/Protoforge | Found Prototype Protection 36954 | -2/Protoforge | Identified Cep. Core Shell 37142 | -2/Protoforge | Additional patrols dispatched to research labs 37152 | -2/Protoforge | X0-1V1 sent hostile Wasp (x2) 37197 | -2/Protoforge | Crushed by falling debris 37209 | -2/Protoforge | Found Prototype Device 37209 | -2/Protoforge | Identified Crosscalibrator 37217 | -2/Protoforge | Spotted Decapitator 37217 | -2/Protoforge | Spotted Decapitator 37217 | -2/Protoforge | Spotted Decapitator 37217 | -2/Protoforge | Spotted Decapitator 37222 | -2/Protoforge | Destroyed Decapitator 37224 | -2/Protoforge | Destroyed Decapitator 37226 | -2/Protoforge | Destroyed Decapitator 37228 | -2/Protoforge | Destroyed Decapitator 37255 | -2/Protoforge | Destroyed 7 combat bots 37299 | -2/Protoforge | System corruption reached 30% 37314 | -2/Protoforge | Found Cep. Antigrav Storage Unit 37316 | -2/Protoforge | Found Cep. Chromion Battery 37319 | -2/Protoforge | Found Cep. NT7 Matterbank 37323 | -2/Protoforge | Found Prototype Device 37323 | -2/Protoforge | Identified Cep. Matter Streamer 37335 | -2/Protoforge | Spotted V114-r 37335 | -2/Protoforge | Spotted V487-h 37338 | -2/Protoforge | Found Faulty Cep. Matter Streamer 37384 | -2/Protoforge | Spotted Immortal 37384 | -2/Protoforge | Spotted Immortal 37388 | -2/Protoforge | X0-1V1 sent you to a vault 37419 | -2/Protoforge | Spotted Hotshot 37419 | -2/Protoforge | Destroyed Hotshot 37421 | -2/Protoforge | Spotted Hotshot 37422 | -2/Protoforge | Destroyed Hotshot 37423 | -2/Protoforge | Spotted Hotshot 37424 | -2/Protoforge | Destroyed Hotshot 37425 | -2/Protoforge | Spotted Hotshot 37425 | -2/Protoforge | Destroyed Hotshot 37462 | -2/Protoforge | Destroyed 11 combat bots 37531 | -2/Protoforge | Destroyed Immortal 37537 | -2/Protoforge | Destroyed Immortal 37539 | -2/Protoforge | Found Prototype Ballistic Gun 37539 | -2/Protoforge | Identified Cep. XC Strikerail 37542 | -2/Protoforge | Found Prototype Processor 37542 | -2/Protoforge | Identified Exp. Melee Analysis Suite 37554 | -2/Protoforge | X0-1V1 sent you into danger 37572 | -2/Protoforge | Core integrity fell below 50% 37634 | -2/Protoforge | Destroyed 13 combat bots 37647 | -2/Protoforge | Found Cep. Helical Railcannon 37658 | -2/Protoforge | Found Prototype Energy Cannon 37658 | -2/Protoforge | Identified Cep. Plasma Driver 37785 | -2/Protoforge | Found Prototype Energy Gun 37785 | -2/Protoforge | Identified Cep. Variable Chargecaster 37835 | -2/Protoforge | Found Cep. Disintegration Ray 37850 | -2/Protoforge | Destroyed 11 combat bots 37951 | -2/Protoforge | X0-1V1 sent you into danger 37983 | -2/Protoforge | Crushed by falling debris 38019 | -2/Protoforge | Spotted Decapitator 38019 | -2/Protoforge | Spotted Decapitator 38019 | -2/Protoforge | Spotted Decapitator 38027 | -2/Protoforge | Destroyed Decapitator 38030 | -2/Protoforge | Destroyed Decapitator 38039 | -2/Protoforge | Destroyed Decapitator 38068 | -2/Protoforge | Destroyed 13 combat bots 38245 | -2/Protoforge | Found Prototype Device 38245 | -2/Protoforge | Identified Cep. Antimissile System 38357 | -2/Protoforge | Destroyed 10 combat bots 38409 | -2/Protoforge | Found Prototype Device 38409 | -2/Protoforge | Identified Cep. Energy Mantle 38412 | -2/Protoforge | Found Cep. RG22 Armor 38489 | -2/Protoforge | X0-1V1 added 0b10 threat records associated with you (considerable) 38526 | -2/Protoforge | Spotted Decapitator 38526 | -2/Protoforge | Spotted V392-e 38526 | -2/Protoforge | Spotted V461-g 38529 | -2/Protoforge | Spotted Decapitator 38533 | -2/Protoforge | Destroyed V461-g 38535 | -2/Protoforge | Destroyed Decapitator 38542 | -2/Protoforge | Destroyed V392-e 38554 | -2/Protoforge | Found Multirail 38571 | -2/Protoforge | Found Prototype Processor 38571 | -2/Protoforge | Identified Cep. Melee Reflex Suite 38577 | -2/Protoforge | Found Prototype Device 38577 | -2/Protoforge | Identified Cep. Networked Targeting System 38591 | -2/Protoforge | Found Cep. Weapon Articulator 38595 | -2/Protoforge | Found Prototype Device 38595 | -2/Protoforge | Identified Cep. Countertargeting System 38605 | -2/Protoforge | Found Prototype Device 38605 | -2/Protoforge | Identified Exp. Force Booster 38610 | -2/Protoforge | Found Prototype Device 38610 | -2/Protoforge | Identified Exp. Kinecellerator 38698 | -2/Protoforge | Destroyed Decapitator 38740 | -2/Protoforge | Spotted Hotshot 38744 | -2/Protoforge | Spotted Hotshot 38745 | -2/Protoforge | Destroyed Hotshot 38745 | -2/Protoforge | Destroyed Hotshot 38746 | -2/Protoforge | Destroyed Hotshot 38747 | -2/Protoforge | Spotted Hotshot 38750 | -2/Protoforge | Destroyed Hotshot 38771 | -2/Protoforge | Spotted V799-u 38772 | -2/Protoforge | Spotted V884-u 38781 | -2/Protoforge | Destroyed V799-u 38783 | -2/Protoforge | X0-1V1 sent allied L-61 Swordsman (x3) 38783 | -2/Protoforge | Destroyed V884-u 38808 | -2/Protoforge | Found Faulty Cep. Zero-point Core 38821 | -2/Protoforge | Spotted V146-c 38821 | -2/Protoforge | Destroyed V146-c 38836 | -2/Protoforge | Found Prototype Device 38836 | -2/Protoforge | Identified Exp. Thermal Defense Suite 38868 | -2/Protoforge | X0-1V1 caused items to flee you 38876 | -2/Protoforge | Build established: Construct 38878 | -2/Protoforge | X0-1V1 vaporized surrounding terrain (radius 19) 38969 | -2/Protoforge | Destroyed 21 combat bots 38974 | -2/Protoforge | Spotted Decapitator 38974 | -2/Protoforge | Spotted Decapitator 38974 | -2/Protoforge | Spotted Decapitator 39033 | -2/Protoforge | Items stopped fleeing you 39126 | -2/Protoforge | Destroyed Decapitator 39126 | -2/Protoforge | Destroyed Decapitator 39126 | -2/Protoforge | Destroyed Decapitator 39130 | -2/Protoforge | Destroyed Decapitator 39146 | -2/Protoforge | Found Prototype Launcher 39146 | -2/Protoforge | Identified Cep. Concussive Dispersal Blaster 39167 | -2/Protoforge | Found Cep. Rapid Grenade Launcher 39185 | -2/Protoforge | Spotted V182-a 39191 | -2/Protoforge | Destroyed V182-a 39209 | -2/Protoforge | Spotted V752-x 39209 | -2/Protoforge | Spotted V062-g 39220 | -2/Protoforge | Destroyed V062-g 39221 | -2/Protoforge | Destroyed V752-x 39230 | -2/Protoforge | Spotted V840-d 39232 | -2/Protoforge | Destroyed V840-d 39261 | -2/Protoforge | Found Prototype Processor 39261 | -2/Protoforge | Identified Exp. Armor Integrity Analyzer 39308 | -2/Protoforge | Spotted Immortal 39309 | -2/Protoforge | Spotted Immortal 39325 | -2/Protoforge | Destroyed Immortal 39327 | -2/Protoforge | Destroyed Immortal 39340 | -2/Protoforge | Spotted V902-o 39538 | -2/Protoforge | Build established: Scavenger-Construct 39587 | -2/Protoforge | Spotted AP7-3 39587 | -2/Protoforge | Spotted AP7-3 39590 | -2/Protoforge | Destroyed AP7-3 39609 | -2/Protoforge | Destroyed AP7-3 39616 | -2/Protoforge | Core integrity restored by X0-1V1 (+225) 39624 | -2/Protoforge | Found Exp. Target Analyzer 39627 | -2/Protoforge | Found Prototype Device 39627 | -2/Protoforge | Identified Exp. ECM Suite 39634 | -2/Protoforge | Found Cep. Cloak Mesh 39636 | -2/Protoforge | Found Prototype Device 39636 | -2/Protoforge | Identified Cep. Thermoelectric Network 39638 | -2/Protoforge | Found Prototype Device 39638 | -2/Protoforge | Identified Cep. Dimensional Manipulator 39643 | -2/Protoforge | Found Cep. Impact Drone Bay 39658 | -2/Protoforge | Found Prototype Energy Gun 39658 | -2/Protoforge | Identified Enh. Gamma Rifle 39710 | -2/Protoforge | Destroyed 9 combat bots 39795 | -2/Protoforge | Destroyed 13 combat bots 39872 | -2/Protoforge | Destroyed 20 combat bots 39877 | -2/Protoforge | X0-1V1 sent hostile P-80 Master (x3) 39923 | -2/Protoforge | Found Cep. Nanofilaments [Tensile] 39923 | -2/Protoforge | Installed Cep. Nanofilaments [Tensile], 3 resistances modified: KI +20%, TH -10%, I +20% 39932 | -2/Protoforge | Found Cep. Navigation Harness 39941 | -2/Protoforge | Found Alien Artifact 39953 | -2/Protoforge | X0-1V1 sent hostile X-87 Electro (x3) 40045 | -2/Protoforge | X0-1V1 turns hostiles against one another 40121 | -2/Protoforge | Found Prototype Device 40121 | -2/Protoforge | Identified Exp. Focal Shield 40125 | -2/Protoforge | Destroyed 13 combat bots 40170 | -2/Protoforge | X0-1V1 revealed exit location to -1/Access 40179 | -2/Protoforge | X0-1V1 turns hostiles against one another 40293 | -2/Protoforge | Destroyed 12 combat bots 40309 | -2/Protoforge | X0-1V1 activates XOMVISION 40351 | -2/Protoforge | Destroyed 7 combat bots 40460 | -2/Protoforge | High security lockdown imminent 40540 | -2/Protoforge | High security lockdown engaged 40592 | -2/Protoforge | Spotted Hotshot 40611 | -2/Protoforge | Spotted Striker 40636 | -2/Protoforge | Destroyed Striker 40649 | -2/Protoforge | Found Exp. Thermal Defense Suite 40652 | -2/Protoforge | X0-1V1 put everyone to sleep 40679 | -2/Protoforge | X0-1V1 activates XOMVISION 40722 | -2/Protoforge | Spotted Immortal 40722 | -2/Protoforge | Spotted Hotshot 40729 | -2/Protoforge | Destroyed 7 combat bots 40742 | -2/Protoforge | Weapon slot count temporarily expanded by X0-1V1 (+3) 40744 | -2/Protoforge | Destroyed Immortal 40770 | -2/Protoforge | Spotted Hotshot 40779 | -2/Protoforge | Allies destroyed Immortal 40787 | -2/Protoforge | Core integrity fell below 20% 40787 | -2/Protoforge | Identified Sigix Terminator 40788 | -2/Protoforge | Fired Sigix Terminator 40788 | -2/Protoforge | Destroyed Hotshot 40788 | -2/Protoforge | Destroyed Hotshot 40790 | -2/Protoforge | Self-destructed Last Messages --------------- 40786_ Superfortress assembles Exp. Cooling System. 40787_ Identified Sigix Terminator. 40788_ Sigix Terminator expended. 40788_ Destroyed Prc. Energy Filter. 40788_ Hotshot destroyed. 40788_ Destroyed Adv. Heat Sink. 40788_ Destroyed Unknown Hover Unit. 40788_ P-80 Master destroyed. 40788_ Hpw. Ballistic Helical Construct/C destroyed. 40788_ X0-1V1 is mildly amused. 40788_ Arm. Scrap Engine damaged due to network destabilization (-6). 40788_ Destroyed Hpw. Ballistic Helical Construct/C. 40788_ Thermal Nova Construct/C destroyed. 40788_ Arm. Scrap Engine damaged due to network destabilization (-5). 40788_ Destroyed Thermal Nova Construct/C. 40788_ Exp. Thermal Defense Suite destroyed. 40788_ Destroyed Exp. Thermal Defense Suite. 40788_ Machine disabled. 40789_ X0-1V1 roars with laughter! 40790_ System corrupted: Component data lost. Map ----- +----------------------------------------------------+ | "#??????#"""" " "#????#"!!" | | "" "#??????#"""" " "#????#" !" | | "" "#??????#"" " !"#????###"" | | """" "#???????" " !???????# | | [[ #"""""""#???????? ??????????# | | =! #########????????##""" #????????????###++### | | " #????????????????#" " #????????????#" # | | # #????????????????#" " #????????????#" # | | # #????????????????#" !" #????????????#"% !=" | | # #????????????????#" ;????????????#"= " | | # #????????????????# ; ??????????#"* " | | # ###???????????? ; ; ???????#"!= | | # "#?????????? ; ; ?????#" " ""# | | # "#?????????# ; ; ???#"""#"?# | | # "#????????## ; ; ??#####??# | | # "#????????# ; ; ; ?????????#% | | # ###???????## ;;;;; ; ????????# [ | | # #?????????# ; ; ????????#= | | # #?????????# ; ; ???????#* | | # ###??????## ; ; ???????#! | | # # #??????# ; ; ???????#[% | | # # #??????# ; ; ??????# [ | | " !#########;;;;;;;;;; ; ;; ; ;;;;;#######%! | | [ == % FFF %!*!=%! | | %! = = ! FFF [%|!=*%!% | | =%= @ FFF !%!%=/* | | ""##########+;;;;;;;;;;;;;;;;; "!![=|## | | ##?????# " ! ; % ; #"]=%!% | | ???????# / ! ; ; ; ### *=%## | | #???????# % ; ; ; ??# =*" # | | #???????#" ; ; ;??#" !=% # | | #???????#" " ;; ; ;?#%#* !! | | ????????#" "" ! ; ; ;# #"! " | | ????????#" """" ; ;;;;;;;;;;#####^ """ | | ????????#""""""% ; ???#" | | ????????########;; ????#" | | ???????????????# ????#" | | ???????????????# ?????#"##"#"" | | ???????????????# ???????##?### | | ???????????????# ???????????????# | | ???????????????#""#??;;;;;;;;;???????????????????" | | ???????????????# #???? ?????????????????????# | | ???????????????#"##??????????????????????????????? | | ???????????????# #??????????????????????????????? | | ???????????????# ##?????????????????????????????? | | ???????????????# #?????????????????????????????? | | ???????????????# #?????????????????????????????? | | ???????????????##""###???######??????###?????????? | | ???????????######! "#???#""""#?????"""#?????? T"? | | ????????####"" "" !!!##### !!!##### [[[##### | +----------------------------------------------------+ Best States ------------- Heat Dissipation 188 Coolant Potential 100 Energy Generation 129 Energy Capacity 6837 Matter Stores 1000 Matter Capacity 1000 Sight Range 31 Terrain Scan Range 14 Terrain Scan Density 10 Base Temperature (-) 200 Armor Coverage 1200 Resistance: KI 50 Resistance: TH 43 Resistance: EM 75 Resistance: I 20 Weapon Shielding 66 Weapon Cycling 30 Evasion (%) 64 Targeting Accuracy 12 Launcher Accuracy 60 Target Analysis 10 Core Analysis 11 Armor Integrity Analysis 50 Recoil Reduction 5 Energy Filtering 50 Particle Charging 25 Kinecelleration 66 Offensive Hacking 16 Item Schematics ----------------- Hvy. Flak Cannon | -6/Zion | Archive Lance | -6/Zion | Archive Matter Compressor | -6/Zion | Archive Imp. Plasma Cutter | -6/Zion | Archive Imp. Trap Scanner | -6/Zion | Archive Imp. Weapon Cycler | -6/Zion | Archive Imp. Particle Charger | -6/Zion | Archive Phase Gun | -6/Zion | Archive Hyp. Mass Driver | -6/Zion | Archive Adv. Heat Sink | -6/Zion | Archive Mni. Drone Bay | -6/Zion | Archive Imp. Thermal Generator | -6/Zion | Archive Imp. Component Analysis Suite | -6/Zion | Archive Proton Cannon | -6/Zion | Archive KE Penetrator | -6/Zion | Archive Coolant Network | -2/Testing | Archive Cld. Antigrav System | -2/Testing | Archive Gravity Neutralizer | -2/Testing | Archive Exp. Energy Well | -2/Testing | Archive Cld. Plasma Rifle | -2/Testing | Archive Exp. Q-thruster | -2/Testing | Archive Hvy. Gatling Laser | -2/Testing | Archive Centrium Medium Armor Plating | -2/Protoforge | Archive Hvy. Wave Gun | -2/Protoforge | Archive Exp. Coolant Injector | -2/Protoforge | Archive Hvy. Tesla Rifle | -2/Protoforge | Archive Imp. Energy Well | -2/Protoforge | Archive Exp. Gyrokinetic Inverter | -2/Protoforge | Archive Shock Maul | -2/Protoforge | Archive Adv. Variable Charge Gun | -2/Protoforge | Archive Enh. Coil Gun | -2/Protoforge | Archive Exp. Power Amplifier | -2/Protoforge | Archive Particle Accelerator | -2/Protoforge | Archive Hvy. Neutron Cannon | -2/Protoforge | Archive Imp. Matter Compressor | -2/Protoforge | Archive Exp. System Shield | -2/Protoforge | Archive Robot Schematics ------------------ T-07 Excavator | -6/Zion | Archive L-41 Fighter | -6/Zion | Archive D-53 Grenadier | -6/Zion | Archive R-06 Scavenger | -2/Testing | Archive A-02 Transporter | -2/Testing | Archive Fabricated ------------ Nothing Repaired ---------- Nothing Studied --------- Flak Cannon | -8/Materials | Hacked Missile Launcher | -8/Materials | Hacked Hvy. Flak Cannon | -6/Factory | Hacked Gatling Laser | -6/Factory | Hacked Quantum Rifle | -3/Research | Hacked Imp. Thunder Leg | -3/Quarantine | Hacked Gamma Rifle | -3/Quarantine | Hacked Alien Tech Used ----------------- Phase Redirector Concept Nanofilaments [Tensile] Sigix Terminator Achievements -------------- Left-hand Path Monstrosity Challenges ------------ None Game ------ Seed ExoskeletonBombFragment Manual? 0 Play Time 07:18:13 Cumulative 605.7 hours Start 2026.08.30 @ 17:47:33 End 2026.08.31 @ 04:38:26 Sessions 3 Manual Loads 0 Difficulty Rogue Special Mode None Game No. 334 Rogue 334 Adventurer 0 Explorer 0 Win Type - Total 20 Types 10/1/3/1/1/0/1/1/0/2 Lore% 86 Gallery% 84 Achievement% 76 Wizard Run 0 Options --------- Layout 0 ASCII 0 Keyboard 0 Movement Mouse Keybinds 0 Fullscreen 1 Font 18/SmallcapsGlow Map View 76x50 Zoom Use 0% Tactical HUD 1 Map Filters NONE Filters NONE Steam 1 RUN: c27d816e-b4f0-4ce7-8641-c784ee5fd9cf